{"text_format":"1","workbook":"xlsx","n_sheets":3,"sheets":["Input","ScheduledRooms","LookupLists"],"not_rendered":{"charts":0,"images":3,"macros":1,"external_links":0,"defined_names":15,"comments":0,"pivot_tables":0},"unopened":[],"bounds":{"document_bytes":16777216,"sheet_cells":100000,"rows_first":2000,"rows_last":500,"rows_between":2000,"halvings":0,"cell_chars":16384,"cell_head_chars":4096},"cells_cut":0,"cells_raw":0,"read":"whole","date_system":"1900"}

{"sheet":"Input","index":0,"n_rows":24,"n_cols":16,"rows_kept":24,"cut":false,"hidden":false,"merged":[]}
[null,null,null,null,"HIDE COLUMNS",null,null,null,null,null,null,null,"HIDE","HIDE"]
[null,null,null,null,null,null,null,null,null,null,null,null,"Rec#","In Db"]
[null,"Classroom Scheduling Form",null,null,null,null,null,null,null,null,null,null,{"$f":"IF(ISERROR(MATCH(OrderSel,OrderIDList,0)),0,MATCH(OrderSel,OrderIDList,0))","v":0},{"$f":"AND($P$14=TRUE)","v":true}]
[null,null,null,null,"Req'd","Test"]
[null,"First Name",null,null,"x",{"$f":"IF(E5=\"\",\"\",IF(OrderID=\"\",1,\"\"))","v":1},null,null,"   View Reserved Room Details",null,null,null,null,null,null,"Room Check"]
[null,"Last Name",null,null,"x",{"$f":"IF(E6=\"\",\"\",IF(D6=\"\",1,\"\"))","v":1},null,0,"of ",{"$f":"COUNTA(ScheduledRooms!A:A)","v":0},null,null,null,null,null,{"$f":"CONCATENATE(D10,D11,D12,D13,D14)","v":""}]
[null,"Course ID",null,null,"x",{"$f":"IF(E7=\"\",\"\",IF(D7=\"\",1,\"\"))","v":1}]
[null,"Course Number",null,null,"x",1]
[null,"Course Type",null,null,"x",1]
[null,"Building",null,null,"x",1]
[null,"Room Number",null,null,"x",1]
[null,"Meeting Days",null,null,"x",1]
[null,"Start Time",null,null,"x",1]
[null,"End Time",null,null,"x",1,null,null,null,null,null,null,null,null,null,{"$f":"IFERROR(VLOOKUP(P6,ScheduledRooms!M2:P17,4,FALSE),\"FALSE\")","v":true}]
[]
[]
[]
[]
[null,"To save your room reservation, click on the save icon "]
[null,"located in the top left corner of this form."]
[]
[]
[null,"To close out the document, click on the close icon"]
[null,"located in the top right corner of this form."]

{"sheet":"ScheduledRooms","index":1,"n_rows":1551,"n_cols":16,"rows_kept":1551,"cut":false,"hidden":true,"merged":[]}
[null,"Insert UserID","First Name","Last Name","Department","CourseID","Course Type","Building","Room","Meeting Days","Start Time","End Time",null,null,null,true]
[null,null,null,null,null,null,null,null,null,null,null,null,{"$f":"CONCATENATE(H2,I2,J2,K2,L2)","v":""},null,null,true]
[null,null,null,null,null,null,null,null,null,null,null,null,{"$f":"CONCATENATE(H3,I3,J3,K3,L3)","v":""},null,null,true]
[null,null,null,null,null,null,null,null,null,null,null,null,"",null,null,true]
[null,null,null,null,null,null,null,null,null,null,null,null,"",null,null,true]
[null,null,null,null,null,null,null,null,null,null,null,null,"",null,null,true]
[null,null,null,null,null,null,null,null,null,null,null,null,"",null,null,true]
[null,null,null,null,null,null,null,null,null,null,null,null,"",null,null,true]
[null,null,null,null,null,null,null,null,null,null,null,null,"",null,null,true]
[null,null,null,null,null,null,null,null,null,null,null,null,"",null,null,true]
[null,null,null,null,null,null,null,null,null,null,null,null,"",null,null,true]
[null,null,null,null,null,null,null,null,null,null,null,null,"",null,null,true]
[null,null,null,null,null,null,null,null,null,null,null,null,"",null,null,true]
[null,null,null,null,null,null,null,null,null,null,null,null,{"$f":"CONCATENATE(H14,I14,J14,K14,L14)","v":""},null,null,true]
[null,null,null,null,null,null,null,null,null,null,null,null,"",null,null,true]
[null,null,null,null,null,null,null,null,null,null,null,null,"",null,null,true]
[null,null,null,null,null,null,null,null,null,null,null,null,"",null,null,true]
[null,null,null,null,null,null,null,null,null,null,null,null,"",null,null,true]
[null,null,null,null,null,null,null,null,null,null,null,null,"",null,null,true]
[null,null,null,null,null,null,null,null,null,null,null,null,"",null,null,true]
[null,null,null,null,null,null,null,null,null,null,null,null,"",null,null,true]
[null,null,null,null,null,null,null,null,null,null,null,null,"",null,null,true]
[null,null,null,null,null,null,null,null,null,null,null,null,"",null,null,true]
[null,null,null,null,null,null,null,null,null,null,null,null,"",null,null,true]
[null,null,null,null,null,null,null,null,null,null,null,null,"",null,null,true]
[null,null,null,null,null,null,null,null,null,null,null,null,"",null,null,true]
[null,null,null,null,null,null,null,null,null,null,null,null,"",null,null,true]
[null,null,null,null,null,null,null,null,null,null,null,null,"",null,null,true]
[null,null,null,null,null,null,null,null,null,null,null,null,"",null,null,true]
[null,null,null,null,null,null,null,null,null,null,null,null,"",null,null,true]
[null,null,null,null,null,null,null,null,null,null,null,null,"",null,null,true]
[null,null,null,null,null,null,null,null,null,null,null,null,"",null,null,true]
[null,null,null,null,null,null,null,null,null,null,null,null,"",null,null,true]
[null,null,null,null,null,null,null,null,null,null,null,null,"",null,null,true]
[null,null,null,null,null,null,null,null,null,null,null,null,"",null,null,true]
[null,null,null,null,null,null,null,null,null,null,null,null,"",null,null,true]
[null,null,null,null,null,null,null,null,null,null,null,null,"",null,null,true]
[null,null,null,null,null,null,null,null,null,null,null,null,"",null,null,true]
[null,null,null,null,null,null,null,null,null,null,null,null,"",null,null,true]
[null,null,null,null,null,null,null,null,null,null,null,null,"",null,null,true]
[null,null,null,null,null,null,null,null,null,null,null,null,"",null,null,true]
[null,null,null,null,null,null,null,null,null,null,null,null,"",null,null,true]
[null,null,null,null,null,null,null,null,null,null,null,null,"",null,null,true]
[null,null,null,null,null,null,null,null,null,null,null,null,"",null,null,true]
[null,null,null,null,null,null,null,null,null,null,null,null,"",null,null,true]
[null,null,null,null,null,null,null,null,null,null,null,null,"",null,null,true]
[null,null,null,null,null,null,null,null,null,null,null,null,"",null,null,true]
[null,null,null,null,null,null,null,null,null,null,null,null,"",null,null,true]
[null,null,null,null,null,null,null,null,null,null,null,null,"",null,null,true]
[null,null,null,null,null,null,null,null,null,null,null,null,"",null,null,true]
[null,null,null,null,null,null,null,null,null,null,null,null,"",null,null,true]
[null,null,null,null,null,null,null,null,null,null,null,null,"",null,null,true]
[null,null,null,null,null,null,null,null,null,null,null,null,"",null,null,true]
[null,null,null,null,null,null,null,null,null,null,null,null,"",null,null,true]
[null,null,null,null,null,null,null,null,null,null,null,null,"",null,null,true]
[null,null,null,null,null,null,null,null,null,null,null,null,"",null,null,true]
[null,null,null,null,null,null,null,null,null,null,null,null,"",null,null,true]
[null,null,null,null,null,null,null,null,null,null,null,null,"",null,null,true]
[null,null,null,null,null,null,null,null,null,null,null,null,"",null,null,true]
[null,null,null,null,null,null,null,null,null,null,null,null,"",null,null,true]
[null,null,null,null,null,null,null,null,null,null,null,null,"",null,null,true]
[null,null,null,null,null,null,null,null,null,null,null,null,"",null,null,true]
[null,null,null,null,null,null,null,null,null,null,null,null,"",null,null,true]
[null,null,null,null,null,null,null,null,null,null,null,null,"",null,null,true]
[null,null,null,null,null,null,null,null,null,null,null,null,"",null,null,true]
[null,null,null,null,null,null,null,null,null,null,null,null,"",null,null,true]
[null,null,null,null,null,null,null,null,null,null,null,null,{"$f":"CONCATENATE(H67,I67,J67,K67,L67)","v":""},null,null,true]
[null,null,null,null,null,null,null,null,null,null,null,null,"",null,null,true]
[null,null,null,null,null,null,null,null,null,null,null,null,"",null,null,true]
[null,null,null,null,null,null,null,null,null,null,null,null,"",null,null,true]
[null,null,null,null,null,null,null,null,null,null,null,null,"",null,null,true]
[null,null,null,null,null,null,null,null,null,null,null,null,"",null,null,true]
[null,null,null,null,null,null,null,null,null,null,null,null,"",null,null,true]
[null,null,null,null,null,null,null,null,null,null,null,null,"",null,null,true]
[null,null,null,null,null,null,null,null,null,null,null,null,"",null,null,true]
[null,null,null,null,null,null,null,null,null,null,null,null,"",null,null,true]
[null,null,null,null,null,null,null,null,null,null,null,null,"",null,null,true]
[null,null,null,null,null,null,null,null,null,null,null,null,"",null,null,true]
[null,null,null,null,null,null,null,null,null,null,null,null,"",null,null,true]
[null,null,null,null,null,null,null,null,null,null,null,null,"",null,null,true]
[null,null,null,null,null,null,null,null,null,null,null,null,"",null,null,true]
[null,null,null,null,null,null,null,null,null,null,null,null,"",null,null,true]
[null,null,null,null,null,null,null,null,null,null,null,null,"",null,null,true]
[null,null,null,null,null,null,null,null,null,null,null,null,"",null,null,true]
[null,null,null,null,null,null,null,null,null,null,null,null,"",null,null,true]
[null,null,null,null,null,null,null,null,null,null,null,null,"",null,null,true]
[null,null,null,null,null,null,null,null,null,null,null,null,"",null,null,true]
[null,null,null,null,null,null,null,null,null,null,null,null,"",null,null,true]
[null,null,null,null,null,null,null,null,null,null,null,null,"",null,null,true]
[null,null,null,null,null,null,null,null,null,null,null,null,"",null,null,true]
[null,null,null,null,null,null,null,null,null,null,null,null,"",null,null,true]
[null,null,null,null,null,null,null,null,null,null,null,null,"",null,null,true]
[null,null,null,null,null,null,null,null,null,null,null,null,"",null,null,true]
[null,null,null,null,null,null,null,null,null,null,null,null,"",null,null,true]
[null,null,null,null,null,null,null,null,null,null,null,null,"",null,null,true]
[null,null,null,null,null,null,null,null,null,null,null,null,"",null,null,true]
[null,null,null,null,null,null,null,null,null,null,null,null,"",null,null,true]
[null,null,null,null,null,null,null,null,null,null,null,null,"",null,null,true]
[null,null,null,null,null,null,null,null,null,null,null,null,"",null,null,true]
[null,null,null,null,null,null,null,null,null,null,null,null,"",null,null,true]
[null,null,null,null,null,null,null,null,null,null,null,null,"",null,null,true]
[null,null,null,null,null,null,null,null,null,null,null,null,"",null,null,true]
[null,null,null,null,null,null,null,null,null,null,null,null,"",null,null,true]
[null,null,null,null,null,null,null,null,null,null,null,null,"",null,null,true]
[null,null,null,null,null,null,null,null,null,null,null,null,"",null,null,true]
[null,null,null,null,null,null,null,null,null,null,null,null,"",null,null,true]
[null,null,null,null,null,null,null,null,null,null,null,null,"",null,null,true]
[null,null,null,null,null,null,null,null,null,null,null,null,"",null,null,true]
[null,null,null,null,null,null,null,null,null,null,null,null,"",null,null,true]
[null,null,null,null,null,null,null,null,null,null,null,null,"",null,null,true]
[null,null,null,null,null,null,null,null,null,null,null,null,"",null,null,true]
[null,null,null,null,null,null,null,null,null,null,null,null,"",null,null,true]
[null,null,null,null,null,null,null,null,null,null,null,null,"",null,null,true]
[null,null,null,null,null,null,null,null,null,null,null,null,"",null,null,true]
[null,null,null,null,null,null,null,null,null,null,null,null,"",null,null,true]
[null,null,null,null,null,null,null,null,null,null,null,null,"",null,null,true]
[null,null,null,null,null,null,null,null,null,null,null,null,"",null,null,true]
[null,null,null,null,null,null,null,null,null,null,null,null,"",null,null,true]
[null,null,null,null,null,null,null,null,null,null,null,null,"",null,null,true]
[null,null,null,null,null,null,null,null,null,null,null,null,"",null,null,true]
[null,null,null,null,null,null,null,null,null,null,null,null,"",null,null,true]
[null,null,null,null,null,null,null,null,null,null,null,null,"",null,null,true]
[null,null,null,null,null,null,null,null,null,null,null,null,"",null,null,true]
[null,null,null,null,null,null,null,null,null,null,null,null,"",null,null,true]
[null,null,null,null,null,null,null,null,null,null,null,null,"",null,null,true]
[null,null,null,null,null,null,null,null,null,null,null,null,"",null,null,true]
[null,null,null,null,null,null,null,null,null,null,null,null,"",null,null,true]
[null,null,null,null,null,null,null,null,null,null,null,null,"",null,null,true]
[null,null,null,null,null,null,null,null,null,null,null,null,"",null,null,true]
[null,null,null,null,null,null,null,null,null,null,null,null,"",null,null,true]
[null,null,null,null,null,null,null,null,null,null,null,null,{"$f":"CONCATENATE(H131,I131,J131,K131,L131)","v":""},null,null,true]
[null,null,null,null,null,null,null,null,null,null,null,null,"",null,null,true]
[null,null,null,null,null,null,null,null,null,null,null,null,"",null,null,true]
[null,null,null,null,null,null,null,null,null,null,null,null,"",null,null,true]
[null,null,null,null,null,null,null,null,null,null,null,null,"",null,null,true]
[null,null,null,null,null,null,null,null,null,null,null,null,"",null,null,true]
[null,null,null,null,null,null,null,null,null,null,null,null,"",null,null,true]
[null,null,null,null,null,null,null,null,null,null,null,null,"",null,null,true]
[null,null,null,null,null,null,null,null,null,null,null,null,"",null,null,true]
[null,null,null,null,null,null,null,null,null,null,null,null,"",null,null,true]
[null,null,null,null,null,null,null,null,null,null,null,null,"",null,null,true]
[null,null,null,null,null,null,null,null,null,null,null,null,"",null,null,true]
[null,null,null,null,null,null,null,null,null,null,null,null,"",null,null,true]
[null,null,null,null,null,null,null,null,null,null,null,null,"",null,null,true]
[null,null,null,null,null,null,null,null,null,null,null,null,"",null,null,true]
[null,null,null,null,null,null,null,null,null,null,null,null,"",null,null,true]
[null,null,null,null,null,null,null,null,null,null,null,null,"",null,null,true]
[null,null,null,null,null,null,null,null,null,null,null,null,"",null,null,true]
[null,null,null,null,null,null,null,null,null,null,null,null,"",null,null,true]
[null,null,null,null,null,null,null,null,null,null,null,null,"",null,null,true]
[null,null,null,null,null,null,null,null,null,null,null,null,"",null,null,true]
[null,null,null,null,null,null,null,null,null,null,null,null,"",null,null,true]
[null,null,null,null,null,null,null,null,null,null,null,null,"",null,null,true]
[null,null,null,null,null,null,null,null,null,null,null,null,"",null,null,true]
[null,null,null,null,null,null,null,null,null,null,null,null,"",null,null,true]
[null,null,null,null,null,null,null,null,null,null,null,null,"",null,null,true]
[null,null,null,null,null,null,null,null,null,null,null,null,"",null,null,true]
[null,null,null,null,null,null,null,null,null,null,null,null,"",null,null,true]
[null,null,null,null,null,null,null,null,null,null,null,null,"",null,null,true]
[null,null,null,null,null,null,null,null,null,null,null,null,"",null,null,true]
[null,null,null,null,null,null,null,null,null,null,null,null,"",null,null,true]
[null,null,null,null,null,null,null,null,null,null,null,null,"",null,null,true]
[null,null,null,null,null,null,null,null,null,null,null,null,"",null,null,true]
[null,null,null,null,null,null,null,null,null,null,null,null,"",null,null,true]
[null,null,null,null,null,null,null,null,null,null,null,null,"",null,null,true]
[null,null,null,null,null,null,null,null,null,null,null,null,"",null,null,true]
[null,null,null,null,null,null,null,null,null,null,null,null,"",null,null,true]
[null,null,null,null,null,null,null,null,null,null,null,null,"",null,null,true]
[null,null,null,null,null,null,null,null,null,null,null,null,"",null,null,true]
[null,null,null,null,null,null,null,null,null,null,null,null,"",null,null,true]
[null,null,null,null,null,null,null,null,null,null,null,null,"",null,null,true]
[null,null,null,null,null,null,null,null,null,null,null,null,"",null,null,true]
[null,null,null,null,null,null,null,null,null,null,null,null,"",null,null,true]
[null,null,null,null,null,null,null,null,null,null,null,null,"",null,null,true]
[null,null,null,null,null,null,null,null,null,null,null,null,"",null,null,true]
[null,null,null,null,null,null,null,null,null,null,null,null,"",null,null,true]
[null,null,null,null,null,null,null,null,null,null,null,null,"",null,null,true]
[null,null,null,null,null,null,null,null,null,null,null,null,"",null,null,true]
[null,null,null,null,null,null,null,null,null,null,null,null,"",null,null,true]
[null,null,null,null,null,null,null,null,null,null,null,null,"",null,null,true]
[null,null,null,null,null,null,null,null,null,null,null,null,"",null,null,true]
[null,null,null,null,null,null,null,null,null,null,null,null,"",null,null,true]
[null,null,null,null,null,null,null,null,null,null,null,null,"",null,null,true]
[null,null,null,null,null,null,null,null,null,null,null,null,"",null,null,true]
[null,null,null,null,null,null,null,null,null,null,null,null,"",null,null,true]
[null,null,null,null,null,null,null,null,null,null,null,null,"",null,null,true]
[null,null,null,null,null,null,null,null,null,null,null,null,"",null,null,true]
[null,null,null,null,null,null,null,null,null,null,null,null,"",null,null,true]
[null,null,null,null,null,null,null,null,null,null,null,null,"",null,null,true]
[null,null,null,null,null,null,null,null,null,null,null,null,"",null,null,true]
[null,null,null,null,null,null,null,null,null,null,null,null,"",null,null,true]
[null,null,null,null,null,null,null,null,null,null,null,null,"",null,null,true]
[null,null,null,null,null,null,null,null,null,null,null,null,"",null,null,true]
[null,null,null,null,null,null,null,null,null,null,null,null,"",null,null,true]
[null,null,null,null,null,null,null,null,null,null,null,null,{"$f":"CONCATENATE(H195,I195,J195,K195,L195)","v":""},null,null,true]
[null,null,null,null,null,null,null,null,null,null,null,null,"",null,null,true]
[null,null,null,null,null,null,null,null,null,null,null,null,"",null,null,true]
[null,null,null,null,null,null,null,null,null,null,null,null,"",null,null,true]
[null,null,null,null,null,null,null,null,null,null,null,null,"",null,null,true]
[null,null,null,null,null,null,null,null,null,null,null,null,"",null,null,true]
[null,null,null,null,null,null,null,null,null,null,null,null,"",null,null,true]
[null,null,null,null,null,null,null,null,null,null,null,null,"",null,null,true]
[null,null,null,null,null,null,null,null,null,null,null,null,"",null,null,true]
[null,null,null,null,null,null,null,null,null,null,null,null,"",null,null,true]
[null,null,null,null,null,null,null,null,null,null,null,null,"",null,null,true]
[null,null,null,null,null,null,null,null,null,null,null,null,"",null,null,true]
[null,null,null,null,null,null,null,null,null,null,null,null,"",null,null,true]
[null,null,null,null,null,null,null,null,null,null,null,null,"",null,null,true]
[null,null,null,null,null,null,null,null,null,null,null,null,"",null,null,true]
[null,null,null,null,null,null,null,null,null,null,null,null,"",null,null,true]
[null,null,null,null,null,null,null,null,null,null,null,null,"",null,null,true]
[null,null,null,null,null,null,null,null,null,null,null,null,"",null,null,true]
[null,null,null,null,null,null,null,null,null,null,null,null,"",null,null,true]
[null,null,null,null,null,null,null,null,null,null,null,null,"",null,null,true]
[null,null,null,null,null,null,null,null,null,null,null,null,"",null,null,true]
[null,null,null,null,null,null,null,null,null,null,null,null,"",null,null,true]
[null,null,null,null,null,null,null,null,null,null,null,null,"",null,null,true]
[null,null,null,null,null,null,null,null,null,null,null,null,"",null,null,true]
[null,null,null,null,null,null,null,null,null,null,null,null,"",null,null,true]
[null,null,null,null,null,null,null,null,null,null,null,null,"",null,null,true]
[null,null,null,null,null,null,null,null,null,null,null,null,"",null,null,true]
[null,null,null,null,null,null,null,null,null,null,null,null,"",null,null,true]
[null,null,null,null,null,null,null,null,null,null,null,null,"",null,null,true]
[null,null,null,null,null,null,null,null,null,null,null,null,"",null,null,true]
[null,null,null,null,null,null,null,null,null,null,null,null,"",null,null,true]
[null,null,null,null,null,null,null,null,null,null,null,null,"",null,null,true]
[null,null,null,null,null,null,null,null,null,null,null,null,"",null,null,true]
[null,null,null,null,null,null,null,null,null,null,null,null,"",null,null,true]
[null,null,null,null,null,null,null,null,null,null,null,null,"",null,null,true]
[null,null,null,null,null,null,null,null,null,null,null,null,"",null,null,true]
[null,null,null,null,null,null,null,null,null,null,null,null,"",null,null,true]
[null,null,null,null,null,null,null,null,null,null,null,null,"",null,null,true]
[null,null,null,null,null,null,null,null,null,null,null,null,"",null,null,true]
[null,null,null,null,null,null,null,null,null,null,null,null,"",null,null,true]
[null,null,null,null,null,null,null,null,null,null,null,null,"",null,null,true]
[null,null,null,null,null,null,null,null,null,null,null,null,"",null,null,true]
[null,null,null,null,null,null,null,null,null,null,null,null,"",null,null,true]
[null,null,null,null,null,null,null,null,null,null,null,null,"",null,null,true]
[null,null,null,null,null,null,null,null,null,null,null,null,"",null,null,true]
[null,null,null,null,null,null,null,null,null,null,null,null,"",null,null,true]
[null,null,null,null,null,null,null,null,null,null,null,null,"",null,null,true]
[null,null,null,null,null,null,null,null,null,null,null,null,"",null,null,true]
[null,null,null,null,null,null,null,null,null,null,null,null,"",null,null,true]
[null,null,null,null,null,null,null,null,null,null,null,null,"",null,null,true]
[null,null,null,null,null,null,null,null,null,null,null,null,"",null,null,true]
[null,null,null,null,null,null,null,null,null,null,null,null,"",null,null,true]
[null,null,null,null,null,null,null,null,null,null,null,null,"",null,null,true]
[null,null,null,null,null,null,null,null,null,null,null,null,"",null,null,true]
[null,null,null,null,null,null,null,null,null,null,null,null,"",null,null,true]
[null,null,null,null,null,null,null,null,null,null,null,null,"",null,null,true]
[null,null,null,null,null,null,null,null,null,null,null,null,"",null,null,true]
[null,null,null,null,null,null,null,null,null,null,null,null,"",null,null,true]
[null,null,null,null,null,null,null,null,null,null,null,null,"",null,null,true]
[null,null,null,null,null,null,null,null,null,null,null,null,"",null,null,true]
[null,null,null,null,null,null,null,null,null,null,null,null,"",null,null,true]
[null,null,null,null,null,null,null,null,null,null,null,null,"",null,null,true]
[null,null,null,null,null,null,null,null,null,null,null,null,"",null,null,true]
[null,null,null,null,null,null,null,null,null,null,null,null,"",null,null,true]
[null,null,null,null,null,null,null,null,null,null,null,null,{"$f":"CONCATENATE(H259,I259,J259,K259,L259)","v":""},null,null,true]
[null,null,null,null,null,null,null,null,null,null,null,null,"",null,null,true]
[null,null,null,null,null,null,null,null,null,null,null,null,"",null,null,true]
[null,null,null,null,null,null,null,null,null,null,null,null,"",null,null,true]
[null,null,null,null,null,null,null,null,null,null,null,null,"",null,null,true]
[null,null,null,null,null,null,null,null,null,null,null,null,"",null,null,true]
[null,null,null,null,null,null,null,null,null,null,null,null,"",null,null,true]
[null,null,null,null,null,null,null,null,null,null,null,null,"",null,null,true]
[null,null,null,null,null,null,null,null,null,null,null,null,"",null,null,true]
[null,null,null,null,null,null,null,null,null,null,null,null,"",null,null,true]
[null,null,null,null,null,null,null,null,null,null,null,null,"",null,null,true]
[null,null,null,null,null,null,null,null,null,null,null,null,"",null,null,true]
[null,null,null,null,null,null,null,null,null,null,null,null,"",null,null,true]
[null,null,null,null,null,null,null,null,null,null,null,null,"",null,null,true]
[null,null,null,null,null,null,null,null,null,null,null,null,"",null,null,true]
[null,null,null,null,null,null,null,null,null,null,null,null,"",null,null,true]
[null,null,null,null,null,null,null,null,null,null,null,null,"",null,null,true]
[null,null,null,null,null,null,null,null,null,null,null,null,"",null,null,true]
[null,null,null,null,null,null,null,null,null,null,null,null,"",null,null,true]
[null,null,null,null,null,null,null,null,null,null,null,null,"",null,null,true]
[null,null,null,null,null,null,null,null,null,null,null,null,"",null,null,true]
[null,null,null,null,null,null,null,null,null,null,null,null,"",null,null,true]
[null,null,null,null,null,null,null,null,null,null,null,null,"",null,null,true]
[null,null,null,null,null,null,null,null,null,null,null,null,"",null,null,true]
[null,null,null,null,null,null,null,null,null,null,null,null,"",null,null,true]
[null,null,null,null,null,null,null,null,null,null,null,null,"",null,null,true]
[null,null,null,null,null,null,null,null,null,null,null,null,"",null,null,true]
[null,null,null,null,null,null,null,null,null,null,null,null,"",null,null,true]
[null,null,null,null,null,null,null,null,null,null,null,null,"",null,null,true]
[null,null,null,null,null,null,null,null,null,null,null,null,"",null,null,true]
[null,null,null,null,null,null,null,null,null,null,null,null,"",null,null,true]
[null,null,null,null,null,null,null,null,null,null,null,null,"",null,null,true]
[null,null,null,null,null,null,null,null,null,null,null,null,"",null,null,true]
[null,null,null,null,null,null,null,null,null,null,null,null,"",null,null,true]
[null,null,null,null,null,null,null,null,null,null,null,null,"",null,null,true]
[null,null,null,null,null,null,null,null,null,null,null,null,"",null,null,true]
[null,null,null,null,null,null,null,null,null,null,null,null,"",null,null,true]
[null,null,null,null,null,null,null,null,null,null,null,null,"",null,null,true]
[null,null,null,null,null,null,null,null,null,null,null,null,"",null,null,true]
[null,null,null,null,null,null,null,null,null,null,null,null,"",null,null,true]
[null,null,null,null,null,null,null,null,null,null,null,null,"",null,null,true]
[null,null,null,null,null,null,null,null,null,null,null,null,"",null,null,true]
[null,null,null,null,null,null,null,null,null,null,null,null,"",null,null,true]
[null,null,null,null,null,null,null,null,null,null,null,null,"",null,null,true]
[null,null,null,null,null,null,null,null,null,null,null,null,"",null,null,true]
[null,null,null,null,null,null,null,null,null,null,null,null,"",null,null,true]
[null,null,null,null,null,null,null,null,null,null,null,null,"",null,null,true]
[null,null,null,null,null,null,null,null,null,null,null,null,"",null,null,true]
[null,null,null,null,null,null,null,null,null,null,null,null,"",null,null,true]
[null,null,null,null,null,null,null,null,null,null,null,null,"",null,null,true]
[null,null,null,null,null,null,null,null,null,null,null,null,"",null,null,true]
[null,null,null,null,null,null,null,null,null,null,null,null,"",null,null,true]
[null,null,null,null,null,null,null,null,null,null,null,null,"",null,null,true]
[null,null,null,null,null,null,null,null,null,null,null,null,"",null,null,true]
[null,null,null,null,null,null,null,null,null,null,null,null,"",null,null,true]
[null,null,null,null,null,null,null,null,null,null,null,null,"",null,null,true]
[null,null,null,null,null,null,null,null,null,null,null,null,"",null,null,true]
[null,null,null,null,null,null,null,null,null,null,null,null,"",null,null,true]
[null,null,null,null,null,null,null,null,null,null,null,null,"",null,null,true]
[null,null,null,null,null,null,null,null,null,null,null,null,"",null,null,true]
[null,null,null,null,null,null,null,null,null,null,null,null,"",null,null,true]
[null,null,null,null,null,null,null,null,null,null,null,null,"",null,null,true]
[null,null,null,null,null,null,null,null,null,null,null,null,"",null,null,true]
[null,null,null,null,null,null,null,null,null,null,null,null,"",null,null,true]
[null,null,null,null,null,null,null,null,null,null,null,null,{"$f":"CONCATENATE(H323,I323,J323,K323,L323)","v":""},null,null,true]
[null,null,null,null,null,null,null,null,null,null,null,null,"",null,null,true]
[null,null,null,null,null,null,null,null,null,null,null,null,"",null,null,true]
[null,null,null,null,null,null,null,null,null,null,null,null,"",null,null,true]
[null,null,null,null,null,null,null,null,null,null,null,null,"",null,null,true]
[null,null,null,null,null,null,null,null,null,null,null,null,"",null,null,true]
[null,null,null,null,null,null,null,null,null,null,null,null,"",null,null,true]
[null,null,null,null,null,null,null,null,null,null,null,null,"",null,null,true]
[null,null,null,null,null,null,null,null,null,null,null,null,"",null,null,true]
[null,null,null,null,null,null,null,null,null,null,null,null,"",null,null,true]
[null,null,null,null,null,null,null,null,null,null,null,null,"",null,null,true]
[null,null,null,null,null,null,null,null,null,null,null,null,"",null,null,true]
[null,null,null,null,null,null,null,null,null,null,null,null,"",null,null,true]
[null,null,null,null,null,null,null,null,null,null,null,null,"",null,null,true]
[null,null,null,null,null,null,null,null,null,null,null,null,"",null,null,true]
[null,null,null,null,null,null,null,null,null,null,null,null,"",null,null,true]
[null,null,null,null,null,null,null,null,null,null,null,null,"",null,null,true]
[null,null,null,null,null,null,null,null,null,null,null,null,"",null,null,true]
[null,null,null,null,null,null,null,null,null,null,null,null,"",null,null,true]
[null,null,null,null,null,null,null,null,null,null,null,null,"",null,null,true]
[null,null,null,null,null,null,null,null,null,null,null,null,"",null,null,true]
[null,null,null,null,null,null,null,null,null,null,null,null,"",null,null,true]
[null,null,null,null,null,null,null,null,null,null,null,null,"",null,null,true]
[null,null,null,null,null,null,null,null,null,null,null,null,"",null,null,true]
[null,null,null,null,null,null,null,null,null,null,null,null,"",null,null,true]
[null,null,null,null,null,null,null,null,null,null,null,null,"",null,null,true]
[null,null,null,null,null,null,null,null,null,null,null,null,"",null,null,true]
[null,null,null,null,null,null,null,null,null,null,null,null,"",null,null,true]
[null,null,null,null,null,null,null,null,null,null,null,null,"",null,null,true]
[null,null,null,null,null,null,null,null,null,null,null,null,"",null,null,true]
[null,null,null,null,null,null,null,null,null,null,null,null,"",null,null,true]
[null,null,null,null,null,null,null,null,null,null,null,null,"",null,null,true]
[null,null,null,null,null,null,null,null,null,null,null,null,"",null,null,true]
[null,null,null,null,null,null,null,null,null,null,null,null,"",null,null,true]
[null,null,null,null,null,null,null,null,null,null,null,null,"",null,null,true]
[null,null,null,null,null,null,null,null,null,null,null,null,"",null,null,true]
[null,null,null,null,null,null,null,null,null,null,null,null,"",null,null,true]
[null,null,null,null,null,null,null,null,null,null,null,null,"",null,null,true]
[null,null,null,null,null,null,null,null,null,null,null,null,"",null,null,true]
[null,null,null,null,null,null,null,null,null,null,null,null,"",null,null,true]
[null,null,null,null,null,null,null,null,null,null,null,null,"",null,null,true]
[null,null,null,null,null,null,null,null,null,null,null,null,"",null,null,true]
[null,null,null,null,null,null,null,null,null,null,null,null,"",null,null,true]
[null,null,null,null,null,null,null,null,null,null,null,null,"",null,null,true]
[null,null,null,null,null,null,null,null,null,null,null,null,"",null,null,true]
[null,null,null,null,null,null,null,null,null,null,null,null,"",null,null,true]
[null,null,null,null,null,null,null,null,null,null,null,null,"",null,null,true]
[null,null,null,null,null,null,null,null,null,null,null,null,"",null,null,true]
[null,null,null,null,null,null,null,null,null,null,null,null,"",null,null,true]
[null,null,null,null,null,null,null,null,null,null,null,null,"",null,null,true]
[null,null,null,null,null,null,null,null,null,null,null,null,"",null,null,true]
[null,null,null,null,null,null,null,null,null,null,null,null,"",null,null,true]
[null,null,null,null,null,null,null,null,null,null,null,null,"",null,null,true]
[null,null,null,null,null,null,null,null,null,null,null,null,"",null,null,true]
[null,null,null,null,null,null,null,null,null,null,null,null,"",null,null,true]
[null,null,null,null,null,null,null,null,null,null,null,null,"",null,null,true]
[null,null,null,null,null,null,null,null,null,null,null,null,"",null,null,true]
[null,null,null,null,null,null,null,null,null,null,null,null,"",null,null,true]
[null,null,null,null,null,null,null,null,null,null,null,null,"",null,null,true]
[null,null,null,null,null,null,null,null,null,null,null,null,"",null,null,true]
[null,null,null,null,null,null,null,null,null,null,null,null,"",null,null,true]
[null,null,null,null,null,null,null,null,null,null,null,null,"",null,null,true]
[null,null,null,null,null,null,null,null,null,null,null,null,"",null,null,true]
[null,null,null,null,null,null,null,null,null,null,null,null,"",null,null,true]
[null,null,null,null,null,null,null,null,null,null,null,null,{"$f":"CONCATENATE(H387,I387,J387,K387,L387)","v":""},null,null,true]
[null,null,null,null,null,null,null,null,null,null,null,null,"",null,null,true]
[null,null,null,null,null,null,null,null,null,null,null,null,"",null,null,true]
[null,null,null,null,null,null,null,null,null,null,null,null,"",null,null,true]
[null,null,null,null,null,null,null,null,null,null,null,null,"",null,null,true]
[null,null,null,null,null,null,null,null,null,null,null,null,"",null,null,true]
[null,null,null,null,null,null,null,null,null,null,null,null,"",null,null,true]
[null,null,null,null,null,null,null,null,null,null,null,null,"",null,null,true]
[null,null,null,null,null,null,null,null,null,null,null,null,"",null,null,true]
[null,null,null,null,null,null,null,null,null,null,null,null,"",null,null,true]
[null,null,null,null,null,null,null,null,null,null,null,null,"",null,null,true]
[null,null,null,null,null,null,null,null,null,null,null,null,"",null,null,true]
[null,null,null,null,null,null,null,null,null,null,null,null,"",null,null,true]
[null,null,null,null,null,null,null,null,null,null,null,null,"",null,null,true]
[null,null,null,null,null,null,null,null,null,null,null,null,"",null,null,true]
[null,null,null,null,null,null,null,null,null,null,null,null,"",null,null,true]
[null,null,null,null,null,null,null,null,null,null,null,null,"",null,null,true]
[null,null,null,null,null,null,null,null,null,null,null,null,"",null,null,true]
[null,null,null,null,null,null,null,null,null,null,null,null,"",null,null,true]
[null,null,null,null,null,null,null,null,null,null,null,null,"",null,null,true]
[null,null,null,null,null,null,null,null,null,null,null,null,"",null,null,true]
[null,null,null,null,null,null,null,null,null,null,null,null,"",null,null,true]
[null,null,null,null,null,null,null,null,null,null,null,null,"",null,null,true]
[null,null,null,null,null,null,null,null,null,null,null,null,"",null,null,true]
[null,null,null,null,null,null,null,null,null,null,null,null,"",null,null,true]
[null,null,null,null,null,null,null,null,null,null,null,null,"",null,null,true]
[null,null,null,null,null,null,null,null,null,null,null,null,"",null,null,true]
[null,null,null,null,null,null,null,null,null,null,null,null,"",null,null,true]
[null,null,null,null,null,null,null,null,null,null,null,null,"",null,null,true]
[null,null,null,null,null,null,null,null,null,null,null,null,"",null,null,true]
[null,null,null,null,null,null,null,null,null,null,null,null,"",null,null,true]
[null,null,null,null,null,null,null,null,null,null,null,null,"",null,null,true]
[null,null,null,null,null,null,null,null,null,null,null,null,"",null,null,true]
[null,null,null,null,null,null,null,null,null,null,null,null,"",null,null,true]
[null,null,null,null,null,null,null,null,null,null,null,null,"",null,null,true]
[null,null,null,null,null,null,null,null,null,null,null,null,"",null,null,true]
[null,null,null,null,null,null,null,null,null,null,null,null,"",null,null,true]
[null,null,null,null,null,null,null,null,null,null,null,null,"",null,null,true]
[null,null,null,null,null,null,null,null,null,null,null,null,"",null,null,true]
[null,null,null,null,null,null,null,null,null,null,null,null,"",null,null,true]
[null,null,null,null,null,null,null,null,null,null,null,null,"",null,null,true]
[null,null,null,null,null,null,null,null,null,null,null,null,"",null,null,true]
[null,null,null,null,null,null,null,null,null,null,null,null,"",null,null,true]
[null,null,null,null,null,null,null,null,null,null,null,null,"",null,null,true]
[null,null,null,null,null,null,null,null,null,null,null,null,"",null,null,true]
[null,null,null,null,null,null,null,null,null,null,null,null,"",null,null,true]
[null,null,null,null,null,null,null,null,null,null,null,null,"",null,null,true]
[null,null,null,null,null,null,null,null,null,null,null,null,"",null,null,true]
[null,null,null,null,null,null,null,null,null,null,null,null,"",null,null,true]
[null,null,null,null,null,null,null,null,null,null,null,null,"",null,null,true]
[null,null,null,null,null,null,null,null,null,null,null,null,"",null,null,true]
[null,null,null,null,null,null,null,null,null,null,null,null,"",null,null,true]
[null,null,null,null,null,null,null,null,null,null,null,null,"",null,null,true]
[null,null,null,null,null,null,null,null,null,null,null,null,"",null,null,true]
[null,null,null,null,null,null,null,null,null,null,null,null,"",null,null,true]
[null,null,null,null,null,null,null,null,null,null,null,null,"",null,null,true]
[null,null,null,null,null,null,null,null,null,null,null,null,"",null,null,true]
[null,null,null,null,null,null,null,null,null,null,null,null,"",null,null,true]
[null,null,null,null,null,null,null,null,null,null,null,null,"",null,null,true]
[null,null,null,null,null,null,null,null,null,null,null,null,"",null,null,true]
[null,null,null,null,null,null,null,null,null,null,null,null,"",null,null,true]
[null,null,null,null,null,null,null,null,null,null,null,null,"",null,null,true]
[null,null,null,null,null,null,null,null,null,null,null,null,"",null,null,true]
[null,null,null,null,null,null,null,null,null,null,null,null,"",null,null,true]
[null,null,null,null,null,null,null,null,null,null,null,null,{"$f":"CONCATENATE(H451,I451,J451,K451,L451)","v":""},null,null,true]
[null,null,null,null,null,null,null,null,null,null,null,null,"",null,null,true]
[null,null,null,null,null,null,null,null,null,null,null,null,"",null,null,true]
[null,null,null,null,null,null,null,null,null,null,null,null,"",null,null,true]
[null,null,null,null,null,null,null,null,null,null,null,null,"",null,null,true]
[null,null,null,null,null,null,null,null,null,null,null,null,"",null,null,true]
[null,null,null,null,null,null,null,null,null,null,null,null,"",null,null,true]
[null,null,null,null,null,null,null,null,null,null,null,null,"",null,null,true]
[null,null,null,null,null,null,null,null,null,null,null,null,"",null,null,true]
[null,null,null,null,null,null,null,null,null,null,null,null,"",null,null,true]
[null,null,null,null,null,null,null,null,null,null,null,null,"",null,null,true]
[null,null,null,null,null,null,null,null,null,null,null,null,"",null,null,true]
[null,null,null,null,null,null,null,null,null,null,null,null,"",null,null,true]
[null,null,null,null,null,null,null,null,null,null,null,null,"",null,null,true]
[null,null,null,null,null,null,null,null,null,null,null,null,"",null,null,true]
[null,null,null,null,null,null,null,null,null,null,null,null,"",null,null,true]
[null,null,null,null,null,null,null,null,null,null,null,null,"",null,null,true]
[null,null,null,null,null,null,null,null,null,null,null,null,"",null,null,true]
[null,null,null,null,null,null,null,null,null,null,null,null,"",null,null,true]
[null,null,null,null,null,null,null,null,null,null,null,null,"",null,null,true]
[null,null,null,null,null,null,null,null,null,null,null,null,"",null,null,true]
[null,null,null,null,null,null,null,null,null,null,null,null,"",null,null,true]
[null,null,null,null,null,null,null,null,null,null,null,null,"",null,null,true]
[null,null,null,null,null,null,null,null,null,null,null,null,"",null,null,true]
[null,null,null,null,null,null,null,null,null,null,null,null,"",null,null,true]
[null,null,null,null,null,null,null,null,null,null,null,null,"",null,null,true]
[null,null,null,null,null,null,null,null,null,null,null,null,"",null,null,true]
[null,null,null,null,null,null,null,null,null,null,null,null,"",null,null,true]
[null,null,null,null,null,null,null,null,null,null,null,null,"",null,null,true]
[null,null,null,null,null,null,null,null,null,null,null,null,"",null,null,true]
[null,null,null,null,null,null,null,null,null,null,null,null,"",null,null,true]
[null,null,null,null,null,null,null,null,null,null,null,null,"",null,null,true]
[null,null,null,null,null,null,null,null,null,null,null,null,"",null,null,true]
[null,null,null,null,null,null,null,null,null,null,null,null,"",null,null,true]
[null,null,null,null,null,null,null,null,null,null,null,null,"",null,null,true]
[null,null,null,null,null,null,null,null,null,null,null,null,"",null,null,true]
[null,null,null,null,null,null,null,null,null,null,null,null,"",null,null,true]
[null,null,null,null,null,null,null,null,null,null,null,null,"",null,null,true]
[null,null,null,null,null,null,null,null,null,null,null,null,"",null,null,true]
[null,null,null,null,null,null,null,null,null,null,null,null,"",null,null,true]
[null,null,null,null,null,null,null,null,null,null,null,null,"",null,null,true]
[null,null,null,null,null,null,null,null,null,null,null,null,"",null,null,true]
[null,null,null,null,null,null,null,null,null,null,null,null,"",null,null,true]
[null,null,null,null,null,null,null,null,null,null,null,null,"",null,null,true]
[null,null,null,null,null,null,null,null,null,null,null,null,"",null,null,true]
[null,null,null,null,null,null,null,null,null,null,null,null,"",null,null,true]
[null,null,null,null,null,null,null,null,null,null,null,null,"",null,null,true]
[null,null,null,null,null,null,null,null,null,null,null,null,"",null,null,true]
[null,null,null,null,null,null,null,null,null,null,null,null,"",null,null,true]
[null,null,null,null,null,null,null,null,null,null,null,null,"",null,null,true]
[null,null,null,null,null,null,null,null,null,null,null,null,"",null,null,true]
[null,null,null,null,null,null,null,null,null,null,null,null,"",null,null,true]
[null,null,null,null,null,null,null,null,null,null,null,null,"",null,null,true]
[null,null,null,null,null,null,null,null,null,null,null,null,"",null,null,true]
[null,null,null,null,null,null,null,null,null,null,null,null,"",null,null,true]
[null,null,null,null,null,null,null,null,null,null,null,null,"",null,null,true]
[null,null,null,null,null,null,null,null,null,null,null,null,"",null,null,true]
[null,null,null,null,null,null,null,null,null,null,null,null,"",null,null,true]
[null,null,null,null,null,null,null,null,null,null,null,null,"",null,null,true]
[null,null,null,null,null,null,null,null,null,null,null,null,"",null,null,true]
[null,null,null,null,null,null,null,null,null,null,null,null,"",null,null,true]
[null,null,null,null,null,null,null,null,null,null,null,null,"",null,null,true]
[null,null,null,null,null,null,null,null,null,null,null,null,"",null,null,true]
[null,null,null,null,null,null,null,null,null,null,null,null,"",null,null,true]
[null,null,null,null,null,null,null,null,null,null,null,null,{"$f":"CONCATENATE(H515,I515,J515,K515,L515)","v":""},null,null,true]
[null,null,null,null,null,null,null,null,null,null,null,null,"",null,null,true]
[null,null,null,null,null,null,null,null,null,null,null,null,"",null,null,true]
[null,null,null,null,null,null,null,null,null,null,null,null,"",null,null,true]
[null,null,null,null,null,null,null,null,null,null,null,null,"",null,null,true]
[null,null,null,null,null,null,null,null,null,null,null,null,"",null,null,true]
[null,null,null,null,null,null,null,null,null,null,null,null,"",null,null,true]
[null,null,null,null,null,null,null,null,null,null,null,null,"",null,null,true]
[null,null,null,null,null,null,null,null,null,null,null,null,"",null,null,true]
[null,null,null,null,null,null,null,null,null,null,null,null,"",null,null,true]
[null,null,null,null,null,null,null,null,null,null,null,null,"",null,null,true]
[null,null,null,null,null,null,null,null,null,null,null,null,"",null,null,true]
[null,null,null,null,null,null,null,null,null,null,null,null,"",null,null,true]
[null,null,null,null,null,null,null,null,null,null,null,null,"",null,null,true]
[null,null,null,null,null,null,null,null,null,null,null,null,"",null,null,true]
[null,null,null,null,null,null,null,null,null,null,null,null,"",null,null,true]
[null,null,null,null,null,null,null,null,null,null,null,null,"",null,null,true]
[null,null,null,null,null,null,null,null,null,null,null,null,"",null,null,true]
[null,null,null,null,null,null,null,null,null,null,null,null,"",null,null,true]
[null,null,null,null,null,null,null,null,null,null,null,null,"",null,null,true]
[null,null,null,null,null,null,null,null,null,null,null,null,"",null,null,true]
[null,null,null,null,null,null,null,null,null,null,null,null,"",null,null,true]
[null,null,null,null,null,null,null,null,null,null,null,null,"",null,null,true]
[null,null,null,null,null,null,null,null,null,null,null,null,"",null,null,true]
[null,null,null,null,null,null,null,null,null,null,null,null,"",null,null,true]
[null,null,null,null,null,null,null,null,null,null,null,null,"",null,null,true]
[null,null,null,null,null,null,null,null,null,null,null,null,"",null,null,true]
[null,null,null,null,null,null,null,null,null,null,null,null,"",null,null,true]
[null,null,null,null,null,null,null,null,null,null,null,null,"",null,null,true]
[null,null,null,null,null,null,null,null,null,null,null,null,"",null,null,true]
[null,null,null,null,null,null,null,null,null,null,null,null,"",null,null,true]
[null,null,null,null,null,null,null,null,null,null,null,null,"",null,null,true]
[null,null,null,null,null,null,null,null,null,null,null,null,"",null,null,true]
[null,null,null,null,null,null,null,null,null,null,null,null,"",null,null,true]
[null,null,null,null,null,null,null,null,null,null,null,null,"",null,null,true]
[null,null,null,null,null,null,null,null,null,null,null,null,"",null,null,true]
[null,null,null,null,null,null,null,null,null,null,null,null,"",null,null,true]
[null,null,null,null,null,null,null,null,null,null,null,null,"",null,null,true]
[null,null,null,null,null,null,null,null,null,null,null,null,"",null,null,true]
[null,null,null,null,null,null,null,null,null,null,null,null,"",null,null,true]
[null,null,null,null,null,null,null,null,null,null,null,null,"",null,null,true]
[null,null,null,null,null,null,null,null,null,null,null,null,"",null,null,true]
[null,null,null,null,null,null,null,null,null,null,null,null,"",null,null,true]
[null,null,null,null,null,null,null,null,null,null,null,null,"",null,null,true]
[null,null,null,null,null,null,null,null,null,null,null,null,"",null,null,true]
[null,null,null,null,null,null,null,null,null,null,null,null,"",null,null,true]
[null,null,null,null,null,null,null,null,null,null,null,null,"",null,null,true]
[null,null,null,null,null,null,null,null,null,null,null,null,"",null,null,true]
[null,null,null,null,null,null,null,null,null,null,null,null,"",null,null,true]
[null,null,null,null,null,null,null,null,null,null,null,null,"",null,null,true]
[null,null,null,null,null,null,null,null,null,null,null,null,"",null,null,true]
[null,null,null,null,null,null,null,null,null,null,null,null,"",null,null,true]
[null,null,null,null,null,null,null,null,null,null,null,null,"",null,null,true]
[null,null,null,null,null,null,null,null,null,null,null,null,"",null,null,true]
[null,null,null,null,null,null,null,null,null,null,null,null,"",null,null,true]
[null,null,null,null,null,null,null,null,null,null,null,null,"",null,null,true]
[null,null,null,null,null,null,null,null,null,null,null,null,"",null,null,true]
[null,null,null,null,null,null,null,null,null,null,null,null,"",null,null,true]
[null,null,null,null,null,null,null,null,null,null,null,null,"",null,null,true]
[null,null,null,null,null,null,null,null,null,null,null,null,"",null,null,true]
[null,null,null,null,null,null,null,null,null,null,null,null,"",null,null,true]
[null,null,null,null,null,null,null,null,null,null,null,null,"",null,null,true]
[null,null,null,null,null,null,null,null,null,null,null,null,"",null,null,true]
[null,null,null,null,null,null,null,null,null,null,null,null,"",null,null,true]
[null,null,null,null,null,null,null,null,null,null,null,null,{"$f":"CONCATENATE(H579,I579,J579,K579,L579)","v":""},null,null,true]
[null,null,null,null,null,null,null,null,null,null,null,null,"",null,null,true]
[null,null,null,null,null,null,null,null,null,null,null,null,"",null,null,true]
[null,null,null,null,null,null,null,null,null,null,null,null,"",null,null,true]
[null,null,null,null,null,null,null,null,null,null,null,null,"",null,null,true]
[null,null,null,null,null,null,null,null,null,null,null,null,"",null,null,true]
[null,null,null,null,null,null,null,null,null,null,null,null,"",null,null,true]
[null,null,null,null,null,null,null,null,null,null,null,null,"",null,null,true]
[null,null,null,null,null,null,null,null,null,null,null,null,"",null,null,true]
[null,null,null,null,null,null,null,null,null,null,null,null,"",null,null,true]
[null,null,null,null,null,null,null,null,null,null,null,null,"",null,null,true]
[null,null,null,null,null,null,null,null,null,null,null,null,"",null,null,true]
[null,null,null,null,null,null,null,null,null,null,null,null,"",null,null,true]
[null,null,null,null,null,null,null,null,null,null,null,null,"",null,null,true]
[null,null,null,null,null,null,null,null,null,null,null,null,"",null,null,true]
[null,null,null,null,null,null,null,null,null,null,null,null,"",null,null,true]
[null,null,null,null,null,null,null,null,null,null,null,null,"",null,null,true]
[null,null,null,null,null,null,null,null,null,null,null,null,"",null,null,true]
[null,null,null,null,null,null,null,null,null,null,null,null,"",null,null,true]
[null,null,null,null,null,null,null,null,null,null,null,null,"",null,null,true]
[null,null,null,null,null,null,null,null,null,null,null,null,"",null,null,true]
[null,null,null,null,null,null,null,null,null,null,null,null,"",null,null,true]
[null,null,null,null,null,null,null,null,null,null,null,null,"",null,null,true]
[null,null,null,null,null,null,null,null,null,null,null,null,"",null,null,true]
[null,null,null,null,null,null,null,null,null,null,null,null,"",null,null,true]
[null,null,null,null,null,null,null,null,null,null,null,null,"",null,null,true]
[null,null,null,null,null,null,null,null,null,null,null,null,"",null,null,true]
[null,null,null,null,null,null,null,null,null,null,null,null,"",null,null,true]
[null,null,null,null,null,null,null,null,null,null,null,null,"",null,null,true]
[null,null,null,null,null,null,null,null,null,null,null,null,"",null,null,true]
[null,null,null,null,null,null,null,null,null,null,null,null,"",null,null,true]
[null,null,null,null,null,null,null,null,null,null,null,null,"",null,null,true]
[null,null,null,null,null,null,null,null,null,null,null,null,"",null,null,true]
[null,null,null,null,null,null,null,null,null,null,null,null,"",null,null,true]
[null,null,null,null,null,null,null,null,null,null,null,null,"",null,null,true]
[null,null,null,null,null,null,null,null,null,null,null,null,"",null,null,true]
[null,null,null,null,null,null,null,null,null,null,null,null,"",null,null,true]
[null,null,null,null,null,null,null,null,null,null,null,null,"",null,null,true]
[null,null,null,null,null,null,null,null,null,null,null,null,"",null,null,true]
[null,null,null,null,null,null,null,null,null,null,null,null,"",null,null,true]
[null,null,null,null,null,null,null,null,null,null,null,null,"",null,null,true]
[null,null,null,null,null,null,null,null,null,null,null,null,"",null,null,true]
[null,null,null,null,null,null,null,null,null,null,null,null,"",null,null,true]
[null,null,null,null,null,null,null,null,null,null,null,null,"",null,null,true]
[null,null,null,null,null,null,null,null,null,null,null,null,"",null,null,true]
[null,null,null,null,null,null,null,null,null,null,null,null,"",null,null,true]
[null,null,null,null,null,null,null,null,null,null,null,null,"",null,null,true]
[null,null,null,null,null,null,null,null,null,null,null,null,"",null,null,true]
[null,null,null,null,null,null,null,null,null,null,null,null,"",null,null,true]
[null,null,null,null,null,null,null,null,null,null,null,null,"",null,null,true]
[null,null,null,null,null,null,null,null,null,null,null,null,"",null,null,true]
[null,null,null,null,null,null,null,null,null,null,null,null,"",null,null,true]
[null,null,null,null,null,null,null,null,null,null,null,null,"",null,null,true]
[null,null,null,null,null,null,null,null,null,null,null,null,"",null,null,true]
[null,null,null,null,null,null,null,null,null,null,null,null,"",null,null,true]
[null,null,null,null,null,null,null,null,null,null,null,null,"",null,null,true]
[null,null,null,null,null,null,null,null,null,null,null,null,"",null,null,true]
[null,null,null,null,null,null,null,null,null,null,null,null,"",null,null,true]
[null,null,null,null,null,null,null,null,null,null,null,null,"",null,null,true]
[null,null,null,null,null,null,null,null,null,null,null,null,"",null,null,true]
[null,null,null,null,null,null,null,null,null,null,null,null,"",null,null,true]
[null,null,null,null,null,null,null,null,null,null,null,null,"",null,null,true]
[null,null,null,null,null,null,null,null,null,null,null,null,"",null,null,true]
[null,null,null,null,null,null,null,null,null,null,null,null,"",null,null,true]
[null,null,null,null,null,null,null,null,null,null,null,null,{"$f":"CONCATENATE(H643,I643,J643,K643,L643)","v":""},null,null,true]
[null,null,null,null,null,null,null,null,null,null,null,null,"",null,null,true]
[null,null,null,null,null,null,null,null,null,null,null,null,"",null,null,true]
[null,null,null,null,null,null,null,null,null,null,null,null,"",null,null,true]
[null,null,null,null,null,null,null,null,null,null,null,null,"",null,null,true]
[null,null,null,null,null,null,null,null,null,null,null,null,"",null,null,true]
[null,null,null,null,null,null,null,null,null,null,null,null,"",null,null,true]
[null,null,null,null,null,null,null,null,null,null,null,null,"",null,null,true]
[null,null,null,null,null,null,null,null,null,null,null,null,"",null,null,true]
[null,null,null,null,null,null,null,null,null,null,null,null,"",null,null,true]
[null,null,null,null,null,null,null,null,null,null,null,null,"",null,null,true]
[null,null,null,null,null,null,null,null,null,null,null,null,"",null,null,true]
[null,null,null,null,null,null,null,null,null,null,null,null,"",null,null,true]
[null,null,null,null,null,null,null,null,null,null,null,null,"",null,null,true]
[null,null,null,null,null,null,null,null,null,null,null,null,"",null,null,true]
[null,null,null,null,null,null,null,null,null,null,null,null,"",null,null,true]
[null,null,null,null,null,null,null,null,null,null,null,null,"",null,null,true]
[null,null,null,null,null,null,null,null,null,null,null,null,"",null,null,true]
[null,null,null,null,null,null,null,null,null,null,null,null,"",null,null,true]
[null,null,null,null,null,null,null,null,null,null,null,null,"",null,null,true]
[null,null,null,null,null,null,null,null,null,null,null,null,"",null,null,true]
[null,null,null,null,null,null,null,null,null,null,null,null,"",null,null,true]
[null,null,null,null,null,null,null,null,null,null,null,null,"",null,null,true]
[null,null,null,null,null,null,null,null,null,null,null,null,"",null,null,true]
[null,null,null,null,null,null,null,null,null,null,null,null,"",null,null,true]
[null,null,null,null,null,null,null,null,null,null,null,null,"",null,null,true]
[null,null,null,null,null,null,null,null,null,null,null,null,"",null,null,true]
[null,null,null,null,null,null,null,null,null,null,null,null,"",null,null,true]
[null,null,null,null,null,null,null,null,null,null,null,null,"",null,null,true]
[null,null,null,null,null,null,null,null,null,null,null,null,"",null,null,true]
[null,null,null,null,null,null,null,null,null,null,null,null,"",null,null,true]
[null,null,null,null,null,null,null,null,null,null,null,null,"",null,null,true]
[null,null,null,null,null,null,null,null,null,null,null,null,"",null,null,true]
[null,null,null,null,null,null,null,null,null,null,null,null,"",null,null,true]
[null,null,null,null,null,null,null,null,null,null,null,null,"",null,null,true]
[null,null,null,null,null,null,null,null,null,null,null,null,"",null,null,true]
[null,null,null,null,null,null,null,null,null,null,null,null,"",null,null,true]
[null,null,null,null,null,null,null,null,null,null,null,null,"",null,null,true]
[null,null,null,null,null,null,null,null,null,null,null,null,"",null,null,true]
[null,null,null,null,null,null,null,null,null,null,null,null,"",null,null,true]
[null,null,null,null,null,null,null,null,null,null,null,null,"",null,null,true]
[null,null,null,null,null,null,null,null,null,null,null,null,"",null,null,true]
[null,null,null,null,null,null,null,null,null,null,null,null,"",null,null,true]
[null,null,null,null,null,null,null,null,null,null,null,null,"",null,null,true]
[null,null,null,null,null,null,null,null,null,null,null,null,"",null,null,true]
[null,null,null,null,null,null,null,null,null,null,null,null,"",null,null,true]
[null,null,null,null,null,null,null,null,null,null,null,null,"",null,null,true]
[null,null,null,null,null,null,null,null,null,null,null,null,"",null,null,true]
[null,null,null,null,null,null,null,null,null,null,null,null,"",null,null,true]
[null,null,null,null,null,null,null,null,null,null,null,null,"",null,null,true]
[null,null,null,null,null,null,null,null,null,null,null,null,"",null,null,true]
[null,null,null,null,null,null,null,null,null,null,null,null,"",null,null,true]
[null,null,null,null,null,null,null,null,null,null,null,null,"",null,null,true]
[null,null,null,null,null,null,null,null,null,null,null,null,"",null,null,true]
[null,null,null,null,null,null,null,null,null,null,null,null,"",null,null,true]
[null,null,null,null,null,null,null,null,null,null,null,null,"",null,null,true]
[null,null,null,null,null,null,null,null,null,null,null,null,"",null,null,true]
[null,null,null,null,null,null,null,null,null,null,null,null,"",null,null,true]
[null,null,null,null,null,null,null,null,null,null,null,null,"",null,null,true]
[null,null,null,null,null,null,null,null,null,null,null,null,"",null,null,true]
[null,null,null,null,null,null,null,null,null,null,null,null,"",null,null,true]
[null,null,null,null,null,null,null,null,null,null,null,null,"",null,null,true]
[null,null,null,null,null,null,null,null,null,null,null,null,"",null,null,true]
[null,null,null,null,null,null,null,null,null,null,null,null,"",null,null,true]
[null,null,null,null,null,null,null,null,null,null,null,null,{"$f":"CONCATENATE(H707,I707,J707,K707,L707)","v":""},null,null,true]
[null,null,null,null,null,null,null,null,null,null,null,null,"",null,null,true]
[null,null,null,null,null,null,null,null,null,null,null,null,"",null,null,true]
[null,null,null,null,null,null,null,null,null,null,null,null,"",null,null,true]
[null,null,null,null,null,null,null,null,null,null,null,null,"",null,null,true]
[null,null,null,null,null,null,null,null,null,null,null,null,"",null,null,true]
[null,null,null,null,null,null,null,null,null,null,null,null,"",null,null,true]
[null,null,null,null,null,null,null,null,null,null,null,null,"",null,null,true]
[null,null,null,null,null,null,null,null,null,null,null,null,"",null,null,true]
[null,null,null,null,null,null,null,null,null,null,null,null,"",null,null,true]
[null,null,null,null,null,null,null,null,null,null,null,null,"",null,null,true]
[null,null,null,null,null,null,null,null,null,null,null,null,"",null,null,true]
[null,null,null,null,null,null,null,null,null,null,null,null,"",null,null,true]
[null,null,null,null,null,null,null,null,null,null,null,null,"",null,null,true]
[null,null,null,null,null,null,null,null,null,null,null,null,"",null,null,true]
[null,null,null,null,null,null,null,null,null,null,null,null,"",null,null,true]
[null,null,null,null,null,null,null,null,null,null,null,null,"",null,null,true]
[null,null,null,null,null,null,null,null,null,null,null,null,"",null,null,true]
[null,null,null,null,null,null,null,null,null,null,null,null,"",null,null,true]
[null,null,null,null,null,null,null,null,null,null,null,null,"",null,null,true]
[null,null,null,null,null,null,null,null,null,null,null,null,"",null,null,true]
[null,null,null,null,null,null,null,null,null,null,null,null,"",null,null,true]
[null,null,null,null,null,null,null,null,null,null,null,null,"",null,null,true]
[null,null,null,null,null,null,null,null,null,null,null,null,"",null,null,true]
[null,null,null,null,null,null,null,null,null,null,null,null,"",null,null,true]
[null,null,null,null,null,null,null,null,null,null,null,null,"",null,null,true]
[null,null,null,null,null,null,null,null,null,null,null,null,"",null,null,true]
[null,null,null,null,null,null,null,null,null,null,null,null,"",null,null,true]
[null,null,null,null,null,null,null,null,null,null,null,null,"",null,null,true]
[null,null,null,null,null,null,null,null,null,null,null,null,"",null,null,true]
[null,null,null,null,null,null,null,null,null,null,null,null,"",null,null,true]
[null,null,null,null,null,null,null,null,null,null,null,null,"",null,null,true]
[null,null,null,null,null,null,null,null,null,null,null,null,"",null,null,true]
[null,null,null,null,null,null,null,null,null,null,null,null,"",null,null,true]
[null,null,null,null,null,null,null,null,null,null,null,null,"",null,null,true]
[null,null,null,null,null,null,null,null,null,null,null,null,"",null,null,true]
[null,null,null,null,null,null,null,null,null,null,null,null,"",null,null,true]
[null,null,null,null,null,null,null,null,null,null,null,null,"",null,null,true]
[null,null,null,null,null,null,null,null,null,null,null,null,"",null,null,true]
[null,null,null,null,null,null,null,null,null,null,null,null,"",null,null,true]
[null,null,null,null,null,null,null,null,null,null,null,null,"",null,null,true]
[null,null,null,null,null,null,null,null,null,null,null,null,"",null,null,true]
[null,null,null,null,null,null,null,null,null,null,null,null,"",null,null,true]
[null,null,null,null,null,null,null,null,null,null,null,null,"",null,null,true]
[null,null,null,null,null,null,null,null,null,null,null,null,"",null,null,true]
[null,null,null,null,null,null,null,null,null,null,null,null,"",null,null,true]
[null,null,null,null,null,null,null,null,null,null,null,null,"",null,null,true]
[null,null,null,null,null,null,null,null,null,null,null,null,"",null,null,true]
[null,null,null,null,null,null,null,null,null,null,null,null,"",null,null,true]
[null,null,null,null,null,null,null,null,null,null,null,null,"",null,null,true]
[null,null,null,null,null,null,null,null,null,null,null,null,"",null,null,true]
[null,null,null,null,null,null,null,null,null,null,null,null,"",null,null,true]
[null,null,null,null,null,null,null,null,null,null,null,null,"",null,null,true]
[null,null,null,null,null,null,null,null,null,null,null,null,"",null,null,true]
[null,null,null,null,null,null,null,null,null,null,null,null,"",null,null,true]
[null,null,null,null,null,null,null,null,null,null,null,null,"",null,null,true]
[null,null,null,null,null,null,null,null,null,null,null,null,"",null,null,true]
[null,null,null,null,null,null,null,null,null,null,null,null,"",null,null,true]
[null,null,null,null,null,null,null,null,null,null,null,null,"",null,null,true]
[null,null,null,null,null,null,null,null,null,null,null,null,"",null,null,true]
[null,null,null,null,null,null,null,null,null,null,null,null,"",null,null,true]
[null,null,null,null,null,null,null,null,null,null,null,null,"",null,null,true]
[null,null,null,null,null,null,null,null,null,null,null,null,"",null,null,true]
[null,null,null,null,null,null,null,null,null,null,null,null,"",null,null,true]
[null,null,null,null,null,null,null,null,null,null,null,null,{"$f":"CONCATENATE(H771,I771,J771,K771,L771)","v":""},null,null,true]
[null,null,null,null,null,null,null,null,null,null,null,null,"",null,null,true]
[null,null,null,null,null,null,null,null,null,null,null,null,"",null,null,true]
[null,null,null,null,null,null,null,null,null,null,null,null,"",null,null,true]
[null,null,null,null,null,null,null,null,null,null,null,null,"",null,null,true]
[null,null,null,null,null,null,null,null,null,null,null,null,"",null,null,true]
[null,null,null,null,null,null,null,null,null,null,null,null,"",null,null,true]
[null,null,null,null,null,null,null,null,null,null,null,null,"",null,null,true]
[null,null,null,null,null,null,null,null,null,null,null,null,"",null,null,true]
[null,null,null,null,null,null,null,null,null,null,null,null,"",null,null,true]
[null,null,null,null,null,null,null,null,null,null,null,null,"",null,null,true]
[null,null,null,null,null,null,null,null,null,null,null,null,"",null,null,true]
[null,null,null,null,null,null,null,null,null,null,null,null,"",null,null,true]
[null,null,null,null,null,null,null,null,null,null,null,null,"",null,null,true]
[null,null,null,null,null,null,null,null,null,null,null,null,"",null,null,true]
[null,null,null,null,null,null,null,null,null,null,null,null,"",null,null,true]
[null,null,null,null,null,null,null,null,null,null,null,null,"",null,null,true]
[null,null,null,null,null,null,null,null,null,null,null,null,"",null,null,true]
[null,null,null,null,null,null,null,null,null,null,null,null,"",null,null,true]
[null,null,null,null,null,null,null,null,null,null,null,null,"",null,null,true]
[null,null,null,null,null,null,null,null,null,null,null,null,"",null,null,true]
[null,null,null,null,null,null,null,null,null,null,null,null,"",null,null,true]
[null,null,null,null,null,null,null,null,null,null,null,null,"",null,null,true]
[null,null,null,null,null,null,null,null,null,null,null,null,"",null,null,true]
[null,null,null,null,null,null,null,null,null,null,null,null,"",null,null,true]
[null,null,null,null,null,null,null,null,null,null,null,null,"",null,null,true]
[null,null,null,null,null,null,null,null,null,null,null,null,"",null,null,true]
[null,null,null,null,null,null,null,null,null,null,null,null,"",null,null,true]
[null,null,null,null,null,null,null,null,null,null,null,null,"",null,null,true]
[null,null,null,null,null,null,null,null,null,null,null,null,"",null,null,true]
[null,null,null,null,null,null,null,null,null,null,null,null,"",null,null,true]
[null,null,null,null,null,null,null,null,null,null,null,null,"",null,null,true]
[null,null,null,null,null,null,null,null,null,null,null,null,"",null,null,true]
[null,null,null,null,null,null,null,null,null,null,null,null,"",null,null,true]
[null,null,null,null,null,null,null,null,null,null,null,null,"",null,null,true]
[null,null,null,null,null,null,null,null,null,null,null,null,"",null,null,true]
[null,null,null,null,null,null,null,null,null,null,null,null,"",null,null,true]
[null,null,null,null,null,null,null,null,null,null,null,null,"",null,null,true]
[null,null,null,null,null,null,null,null,null,null,null,null,"",null,null,true]
[null,null,null,null,null,null,null,null,null,null,null,null,"",null,null,true]
[null,null,null,null,null,null,null,null,null,null,null,null,"",null,null,true]
[null,null,null,null,null,null,null,null,null,null,null,null,"",null,null,true]
[null,null,null,null,null,null,null,null,null,null,null,null,"",null,null,true]
[null,null,null,null,null,null,null,null,null,null,null,null,"",null,null,true]
[null,null,null,null,null,null,null,null,null,null,null,null,"",null,null,true]
[null,null,null,null,null,null,null,null,null,null,null,null,"",null,null,true]
[null,null,null,null,null,null,null,null,null,null,null,null,"",null,null,true]
[null,null,null,null,null,null,null,null,null,null,null,null,"",null,null,true]
[null,null,null,null,null,null,null,null,null,null,null,null,"",null,null,true]
[null,null,null,null,null,null,null,null,null,null,null,null,"",null,null,true]
[null,null,null,null,null,null,null,null,null,null,null,null,"",null,null,true]
[null,null,null,null,null,null,null,null,null,null,null,null,"",null,null,true]
[null,null,null,null,null,null,null,null,null,null,null,null,"",null,null,true]
[null,null,null,null,null,null,null,null,null,null,null,null,"",null,null,true]
[null,null,null,null,null,null,null,null,null,null,null,null,"",null,null,true]
[null,null,null,null,null,null,null,null,null,null,null,null,"",null,null,true]
[null,null,null,null,null,null,null,null,null,null,null,null,"",null,null,true]
[null,null,null,null,null,null,null,null,null,null,null,null,"",null,null,true]
[null,null,null,null,null,null,null,null,null,null,null,null,"",null,null,true]
[null,null,null,null,null,null,null,null,null,null,null,null,"",null,null,true]
[null,null,null,null,null,null,null,null,null,null,null,null,"",null,null,true]
[null,null,null,null,null,null,null,null,null,null,null,null,"",null,null,true]
[null,null,null,null,null,null,null,null,null,null,null,null,"",null,null,true]
[null,null,null,null,null,null,null,null,null,null,null,null,"",null,null,true]
[null,null,null,null,null,null,null,null,null,null,null,null,{"$f":"CONCATENATE(H835,I835,J835,K835,L835)","v":""},null,null,true]
[null,null,null,null,null,null,null,null,null,null,null,null,"",null,null,true]
[null,null,null,null,null,null,null,null,null,null,null,null,"",null,null,true]
[null,null,null,null,null,null,null,null,null,null,null,null,"",null,null,true]
[null,null,null,null,null,null,null,null,null,null,null,null,"",null,null,true]
[null,null,null,null,null,null,null,null,null,null,null,null,"",null,null,true]
[null,null,null,null,null,null,null,null,null,null,null,null,"",null,null,true]
[null,null,null,null,null,null,null,null,null,null,null,null,"",null,null,true]
[null,null,null,null,null,null,null,null,null,null,null,null,"",null,null,true]
[null,null,null,null,null,null,null,null,null,null,null,null,"",null,null,true]
[null,null,null,null,null,null,null,null,null,null,null,null,"",null,null,true]
[null,null,null,null,null,null,null,null,null,null,null,null,"",null,null,true]
[null,null,null,null,null,null,null,null,null,null,null,null,"",null,null,true]
[null,null,null,null,null,null,null,null,null,null,null,null,"",null,null,true]
[null,null,null,null,null,null,null,null,null,null,null,null,"",null,null,true]
[null,null,null,null,null,null,null,null,null,null,null,null,"",null,null,true]
[null,null,null,null,null,null,null,null,null,null,null,null,"",null,null,true]
[null,null,null,null,null,null,null,null,null,null,null,null,"",null,null,true]
[null,null,null,null,null,null,null,null,null,null,null,null,"",null,null,true]
[null,null,null,null,null,null,null,null,null,null,null,null,"",null,null,true]
[null,null,null,null,null,null,null,null,null,null,null,null,"",null,null,true]
[null,null,null,null,null,null,null,null,null,null,null,null,"",null,null,true]
[null,null,null,null,null,null,null,null,null,null,null,null,"",null,null,true]
[null,null,null,null,null,null,null,null,null,null,null,null,"",null,null,true]
[null,null,null,null,null,null,null,null,null,null,null,null,"",null,null,true]
[null,null,null,null,null,null,null,null,null,null,null,null,"",null,null,true]
[null,null,null,null,null,null,null,null,null,null,null,null,"",null,null,true]
[null,null,null,null,null,null,null,null,null,null,null,null,"",null,null,true]
[null,null,null,null,null,null,null,null,null,null,null,null,"",null,null,true]
[null,null,null,null,null,null,null,null,null,null,null,null,"",null,null,true]
[null,null,null,null,null,null,null,null,null,null,null,null,"",null,null,true]
[null,null,null,null,null,null,null,null,null,null,null,null,"",null,null,true]
[null,null,null,null,null,null,null,null,null,null,null,null,"",null,null,true]
[null,null,null,null,null,null,null,null,null,null,null,null,"",null,null,true]
[null,null,null,null,null,null,null,null,null,null,null,null,"",null,null,true]
[null,null,null,null,null,null,null,null,null,null,null,null,"",null,null,true]
[null,null,null,null,null,null,null,null,null,null,null,null,"",null,null,true]
[null,null,null,null,null,null,null,null,null,null,null,null,"",null,null,true]
[null,null,null,null,null,null,null,null,null,null,null,null,"",null,null,true]
[null,null,null,null,null,null,null,null,null,null,null,null,"",null,null,true]
[null,null,null,null,null,null,null,null,null,null,null,null,"",null,null,true]
[null,null,null,null,null,null,null,null,null,null,null,null,"",null,null,true]
[null,null,null,null,null,null,null,null,null,null,null,null,"",null,null,true]
[null,null,null,null,null,null,null,null,null,null,null,null,"",null,null,true]
[null,null,null,null,null,null,null,null,null,null,null,null,"",null,null,true]
[null,null,null,null,null,null,null,null,null,null,null,null,"",null,null,true]
[null,null,null,null,null,null,null,null,null,null,null,null,"",null,null,true]
[null,null,null,null,null,null,null,null,null,null,null,null,"",null,null,true]
[null,null,null,null,null,null,null,null,null,null,null,null,"",null,null,true]
[null,null,null,null,null,null,null,null,null,null,null,null,"",null,null,true]
[null,null,null,null,null,null,null,null,null,null,null,null,"",null,null,true]
[null,null,null,null,null,null,null,null,null,null,null,null,"",null,null,true]
[null,null,null,null,null,null,null,null,null,null,null,null,"",null,null,true]
[null,null,null,null,null,null,null,null,null,null,null,null,"",null,null,true]
[null,null,null,null,null,null,null,null,null,null,null,null,"",null,null,true]
[null,null,null,null,null,null,null,null,null,null,null,null,"",null,null,true]
[null,null,null,null,null,null,null,null,null,null,null,null,"",null,null,true]
[null,null,null,null,null,null,null,null,null,null,null,null,"",null,null,true]
[null,null,null,null,null,null,null,null,null,null,null,null,"",null,null,true]
[null,null,null,null,null,null,null,null,null,null,null,null,"",null,null,true]
[null,null,null,null,null,null,null,null,null,null,null,null,"",null,null,true]
[null,null,null,null,null,null,null,null,null,null,null,null,"",null,null,true]
[null,null,null,null,null,null,null,null,null,null,null,null,"",null,null,true]
[null,null,null,null,null,null,null,null,null,null,null,null,"",null,null,true]
[null,null,null,null,null,null,null,null,null,null,null,null,{"$f":"CONCATENATE(H899,I899,J899,K899,L899)","v":""},null,null,true]
[null,null,null,null,null,null,null,null,null,null,null,null,"",null,null,true]
[null,null,null,null,null,null,null,null,null,null,null,null,"",null,null,true]
[null,null,null,null,null,null,null,null,null,null,null,null,"",null,null,true]
[null,null,null,null,null,null,null,null,null,null,null,null,"",null,null,true]
[null,null,null,null,null,null,null,null,null,null,null,null,"",null,null,true]
[null,null,null,null,null,null,null,null,null,null,null,null,"",null,null,true]
[null,null,null,null,null,null,null,null,null,null,null,null,"",null,null,true]
[null,null,null,null,null,null,null,null,null,null,null,null,"",null,null,true]
[null,null,null,null,null,null,null,null,null,null,null,null,"",null,null,true]
[null,null,null,null,null,null,null,null,null,null,null,null,"",null,null,true]
[null,null,null,null,null,null,null,null,null,null,null,null,"",null,null,true]
[null,null,null,null,null,null,null,null,null,null,null,null,"",null,null,true]
[null,null,null,null,null,null,null,null,null,null,null,null,"",null,null,true]
[null,null,null,null,null,null,null,null,null,null,null,null,"",null,null,true]
[null,null,null,null,null,null,null,null,null,null,null,null,"",null,null,true]
[null,null,null,null,null,null,null,null,null,null,null,null,"",null,null,true]
[null,null,null,null,null,null,null,null,null,null,null,null,"",null,null,true]
[null,null,null,null,null,null,null,null,null,null,null,null,"",null,null,true]
[null,null,null,null,null,null,null,null,null,null,null,null,"",null,null,true]
[null,null,null,null,null,null,null,null,null,null,null,null,"",null,null,true]
[null,null,null,null,null,null,null,null,null,null,null,null,"",null,null,true]
[null,null,null,null,null,null,null,null,null,null,null,null,"",null,null,true]
[null,null,null,null,null,null,null,null,null,null,null,null,"",null,null,true]
[null,null,null,null,null,null,null,null,null,null,null,null,"",null,null,true]
[null,null,null,null,null,null,null,null,null,null,null,null,"",null,null,true]
[null,null,null,null,null,null,null,null,null,null,null,null,"",null,null,true]
[null,null,null,null,null,null,null,null,null,null,null,null,"",null,null,true]
[null,null,null,null,null,null,null,null,null,null,null,null,"",null,null,true]
[null,null,null,null,null,null,null,null,null,null,null,null,"",null,null,true]
[null,null,null,null,null,null,null,null,null,null,null,null,"",null,null,true]
[null,null,null,null,null,null,null,null,null,null,null,null,"",null,null,true]
[null,null,null,null,null,null,null,null,null,null,null,null,"",null,null,true]
[null,null,null,null,null,null,null,null,null,null,null,null,"",null,null,true]
[null,null,null,null,null,null,null,null,null,null,null,null,"",null,null,true]
[null,null,null,null,null,null,null,null,null,null,null,null,"",null,null,true]
[null,null,null,null,null,null,null,null,null,null,null,null,"",null,null,true]
[null,null,null,null,null,null,null,null,null,null,null,null,"",null,null,true]
[null,null,null,null,null,null,null,null,null,null,null,null,"",null,null,true]
[null,null,null,null,null,null,null,null,null,null,null,null,"",null,null,true]
[null,null,null,null,null,null,null,null,null,null,null,null,"",null,null,true]
[null,null,null,null,null,null,null,null,null,null,null,null,"",null,null,true]
[null,null,null,null,null,null,null,null,null,null,null,null,"",null,null,true]
[null,null,null,null,null,null,null,null,null,null,null,null,"",null,null,true]
[null,null,null,null,null,null,null,null,null,null,null,null,"",null,null,true]
[null,null,null,null,null,null,null,null,null,null,null,null,"",null,null,true]
[null,null,null,null,null,null,null,null,null,null,null,null,"",null,null,true]
[null,null,null,null,null,null,null,null,null,null,null,null,"",null,null,true]
[null,null,null,null,null,null,null,null,null,null,null,null,"",null,null,true]
[null,null,null,null,null,null,null,null,null,null,null,null,"",null,null,true]
[null,null,null,null,null,null,null,null,null,null,null,null,"",null,null,true]
[null,null,null,null,null,null,null,null,null,null,null,null,"",null,null,true]
[null,null,null,null,null,null,null,null,null,null,null,null,"",null,null,true]
[null,null,null,null,null,null,null,null,null,null,null,null,"",null,null,true]
[null,null,null,null,null,null,null,null,null,null,null,null,"",null,null,true]
[null,null,null,null,null,null,null,null,null,null,null,null,"",null,null,true]
[null,null,null,null,null,null,null,null,null,null,null,null,"",null,null,true]
[null,null,null,null,null,null,null,null,null,null,null,null,"",null,null,true]
[null,null,null,null,null,null,null,null,null,null,null,null,"",null,null,true]
[null,null,null,null,null,null,null,null,null,null,null,null,"",null,null,true]
[null,null,null,null,null,null,null,null,null,null,null,null,"",null,null,true]
[null,null,null,null,null,null,null,null,null,null,null,null,"",null,null,true]
[null,null,null,null,null,null,null,null,null,null,null,null,"",null,null,true]
[null,null,null,null,null,null,null,null,null,null,null,null,"",null,null,true]
[null,null,null,null,null,null,null,null,null,null,null,null,{"$f":"CONCATENATE(H963,I963,J963,K963,L963)","v":""},null,null,true]
[null,null,null,null,null,null,null,null,null,null,null,null,"",null,null,true]
[null,null,null,null,null,null,null,null,null,null,null,null,"",null,null,true]
[null,null,null,null,null,null,null,null,null,null,null,null,"",null,null,true]
[null,null,null,null,null,null,null,null,null,null,null,null,"",null,null,true]
[null,null,null,null,null,null,null,null,null,null,null,null,"",null,null,true]
[null,null,null,null,null,null,null,null,null,null,null,null,"",null,null,true]
[null,null,null,null,null,null,null,null,null,null,null,null,"",null,null,true]
[null,null,null,null,null,null,null,null,null,null,null,null,"",null,null,true]
[null,null,null,null,null,null,null,null,null,null,null,null,"",null,null,true]
[null,null,null,null,null,null,null,null,null,null,null,null,"",null,null,true]
[null,null,null,null,null,null,null,null,null,null,null,null,"",null,null,true]
[null,null,null,null,null,null,null,null,null,null,null,null,"",null,null,true]
[null,null,null,null,null,null,null,null,null,null,null,null,"",null,null,true]
[null,null,null,null,null,null,null,null,null,null,null,null,"",null,null,true]
[null,null,null,null,null,null,null,null,null,null,null,null,"",null,null,true]
[null,null,null,null,null,null,null,null,null,null,null,null,"",null,null,true]
[null,null,null,null,null,null,null,null,null,null,null,null,"",null,null,true]
[null,null,null,null,null,null,null,null,null,null,null,null,"",null,null,true]
[null,null,null,null,null,null,null,null,null,null,null,null,"",null,null,true]
[null,null,null,null,null,null,null,null,null,null,null,null,"",null,null,true]
[null,null,null,null,null,null,null,null,null,null,null,null,"",null,null,true]
[null,null,null,null,null,null,null,null,null,null,null,null,"",null,null,true]
[null,null,null,null,null,null,null,null,null,null,null,null,"",null,null,true]
[null,null,null,null,null,null,null,null,null,null,null,null,"",null,null,true]
[null,null,null,null,null,null,null,null,null,null,null,null,"",null,null,true]
[null,null,null,null,null,null,null,null,null,null,null,null,"",null,null,true]
[null,null,null,null,null,null,null,null,null,null,null,null,"",null,null,true]
[null,null,null,null,null,null,null,null,null,null,null,null,"",null,null,true]
[null,null,null,null,null,null,null,null,null,null,null,null,"",null,null,true]
[null,null,null,null,null,null,null,null,null,null,null,null,"",null,null,true]
[null,null,null,null,null,null,null,null,null,null,null,null,"",null,null,true]
[null,null,null,null,null,null,null,null,null,null,null,null,"",null,null,true]
[null,null,null,null,null,null,null,null,null,null,null,null,"",null,null,true]
[null,null,null,null,null,null,null,null,null,null,null,null,"",null,null,true]
[null,null,null,null,null,null,null,null,null,null,null,null,"",null,null,true]
[null,null,null,null,null,null,null,null,null,null,null,null,"",null,null,true]
[null,null,null,null,null,null,null,null,null,null,null,null,"",null,null,true]
[null,null,null,null,null,null,null,null,null,null,null,null,"",null,null,true]
[null,null,null,null,null,null,null,null,null,null,null,null,"",null,null,true]
[null,null,null,null,null,null,null,null,null,null,null,null,"",null,null,true]
[null,null,null,null,null,null,null,null,null,null,null,null,"",null,null,true]
[null,null,null,null,null,null,null,null,null,null,null,null,"",null,null,true]
[null,null,null,null,null,null,null,null,null,null,null,null,"",null,null,true]
[null,null,null,null,null,null,null,null,null,null,null,null,"",null,null,true]
[null,null,null,null,null,null,null,null,null,null,null,null,"",null,null,true]
[null,null,null,null,null,null,null,null,null,null,null,null,"",null,null,true]
[null,null,null,null,null,null,null,null,null,null,null,null,"",null,null,true]
[null,null,null,null,null,null,null,null,null,null,null,null,"",null,null,true]
[null,null,null,null,null,null,null,null,null,null,null,null,"",null,null,true]
[null,null,null,null,null,null,null,null,null,null,null,null,"",null,null,true]
[null,null,null,null,null,null,null,null,null,null,null,null,"",null,null,true]
[null,null,null,null,null,null,null,null,null,null,null,null,"",null,null,true]
[null,null,null,null,null,null,null,null,null,null,null,null,"",null,null,true]
[null,null,null,null,null,null,null,null,null,null,null,null,"",null,null,true]
[null,null,null,null,null,null,null,null,null,null,null,null,"",null,null,true]
[null,null,null,null,null,null,null,null,null,null,null,null,"",null,null,true]
[null,null,null,null,null,null,null,null,null,null,null,null,"",null,null,true]
[null,null,null,null,null,null,null,null,null,null,null,null,"",null,null,true]
[null,null,null,null,null,null,null,null,null,null,null,null,"",null,null,true]
[null,null,null,null,null,null,null,null,null,null,null,null,"",null,null,true]
[null,null,null,null,null,null,null,null,null,null,null,null,"",null,null,true]
[null,null,null,null,null,null,null,null,null,null,null,null,"",null,null,true]
[null,null,null,null,null,null,null,null,null,null,null,null,"",null,null,true]
[null,null,null,null,null,null,null,null,null,null,null,null,{"$f":"CONCATENATE(H1027,I1027,J1027,K1027,L1027)","v":""},null,null,true]
[null,null,null,null,null,null,null,null,null,null,null,null,"",null,null,true]
[null,null,null,null,null,null,null,null,null,null,null,null,"",null,null,true]
[null,null,null,null,null,null,null,null,null,null,null,null,"",null,null,true]
[null,null,null,null,null,null,null,null,null,null,null,null,"",null,null,true]
[null,null,null,null,null,null,null,null,null,null,null,null,"",null,null,true]
[null,null,null,null,null,null,null,null,null,null,null,null,"",null,null,true]
[null,null,null,null,null,null,null,null,null,null,null,null,"",null,null,true]
[null,null,null,null,null,null,null,null,null,null,null,null,"",null,null,true]
[null,null,null,null,null,null,null,null,null,null,null,null,"",null,null,true]
[null,null,null,null,null,null,null,null,null,null,null,null,"",null,null,true]
[null,null,null,null,null,null,null,null,null,null,null,null,"",null,null,true]
[null,null,null,null,null,null,null,null,null,null,null,null,"",null,null,true]
[null,null,null,null,null,null,null,null,null,null,null,null,"",null,null,true]
[null,null,null,null,null,null,null,null,null,null,null,null,"",null,null,true]
[null,null,null,null,null,null,null,null,null,null,null,null,"",null,null,true]
[null,null,null,null,null,null,null,null,null,null,null,null,"",null,null,true]
[null,null,null,null,null,null,null,null,null,null,null,null,"",null,null,true]
[null,null,null,null,null,null,null,null,null,null,null,null,"",null,null,true]
[null,null,null,null,null,null,null,null,null,null,null,null,"",null,null,true]
[null,null,null,null,null,null,null,null,null,null,null,null,"",null,null,true]
[null,null,null,null,null,null,null,null,null,null,null,null,"",null,null,true]
[null,null,null,null,null,null,null,null,null,null,null,null,"",null,null,true]
[null,null,null,null,null,null,null,null,null,null,null,null,"",null,null,true]
[null,null,null,null,null,null,null,null,null,null,null,null,"",null,null,true]
[null,null,null,null,null,null,null,null,null,null,null,null,"",null,null,true]
[null,null,null,null,null,null,null,null,null,null,null,null,"",null,null,true]
[null,null,null,null,null,null,null,null,null,null,null,null,"",null,null,true]
[null,null,null,null,null,null,null,null,null,null,null,null,"",null,null,true]
[null,null,null,null,null,null,null,null,null,null,null,null,"",null,null,true]
[null,null,null,null,null,null,null,null,null,null,null,null,"",null,null,true]
[null,null,null,null,null,null,null,null,null,null,null,null,"",null,null,true]
[null,null,null,null,null,null,null,null,null,null,null,null,"",null,null,true]
[null,null,null,null,null,null,null,null,null,null,null,null,"",null,null,true]
[null,null,null,null,null,null,null,null,null,null,null,null,"",null,null,true]
[null,null,null,null,null,null,null,null,null,null,null,null,"",null,null,true]
[null,null,null,null,null,null,null,null,null,null,null,null,"",null,null,true]
[null,null,null,null,null,null,null,null,null,null,null,null,"",null,null,true]
[null,null,null,null,null,null,null,null,null,null,null,null,"",null,null,true]
[null,null,null,null,null,null,null,null,null,null,null,null,"",null,null,true]
[null,null,null,null,null,null,null,null,null,null,null,null,"",null,null,true]
[null,null,null,null,null,null,null,null,null,null,null,null,"",null,null,true]
[null,null,null,null,null,null,null,null,null,null,null,null,"",null,null,true]
[null,null,null,null,null,null,null,null,null,null,null,null,"",null,null,true]
[null,null,null,null,null,null,null,null,null,null,null,null,"",null,null,true]
[null,null,null,null,null,null,null,null,null,null,null,null,"",null,null,true]
[null,null,null,null,null,null,null,null,null,null,null,null,"",null,null,true]
[null,null,null,null,null,null,null,null,null,null,null,null,"",null,null,true]
[null,null,null,null,null,null,null,null,null,null,null,null,"",null,null,true]
[null,null,null,null,null,null,null,null,null,null,null,null,"",null,null,true]
[null,null,null,null,null,null,null,null,null,null,null,null,"",null,null,true]
[null,null,null,null,null,null,null,null,null,null,null,null,"",null,null,true]
[null,null,null,null,null,null,null,null,null,null,null,null,"",null,null,true]
[null,null,null,null,null,null,null,null,null,null,null,null,"",null,null,true]
[null,null,null,null,null,null,null,null,null,null,null,null,"",null,null,true]
[null,null,null,null,null,null,null,null,null,null,null,null,"",null,null,true]
[null,null,null,null,null,null,null,null,null,null,null,null,"",null,null,true]
[null,null,null,null,null,null,null,null,null,null,null,null,"",null,null,true]
[null,null,null,null,null,null,null,null,null,null,null,null,"",null,null,true]
[null,null,null,null,null,null,null,null,null,null,null,null,"",null,null,true]
[null,null,null,null,null,null,null,null,null,null,null,null,"",null,null,true]
[null,null,null,null,null,null,null,null,null,null,null,null,"",null,null,true]
[null,null,null,null,null,null,null,null,null,null,null,null,"",null,null,true]
[null,null,null,null,null,null,null,null,null,null,null,null,"",null,null,true]
[null,null,null,null,null,null,null,null,null,null,null,null,{"$f":"CONCATENATE(H1091,I1091,J1091,K1091,L1091)","v":""},null,null,true]
[null,null,null,null,null,null,null,null,null,null,null,null,"",null,null,true]
[null,null,null,null,null,null,null,null,null,null,null,null,"",null,null,true]
[null,null,null,null,null,null,null,null,null,null,null,null,"",null,null,true]
[null,null,null,null,null,null,null,null,null,null,null,null,"",null,null,true]
[null,null,null,null,null,null,null,null,null,null,null,null,"",null,null,true]
[null,null,null,null,null,null,null,null,null,null,null,null,"",null,null,true]
[null,null,null,null,null,null,null,null,null,null,null,null,"",null,null,true]
[null,null,null,null,null,null,null,null,null,null,null,null,"",null,null,true]
[null,null,null,null,null,null,null,null,null,null,null,null,"",null,null,true]
[null,null,null,null,null,null,null,null,null,null,null,null,"",null,null,true]
[null,null,null,null,null,null,null,null,null,null,null,null,"",null,null,true]
[null,null,null,null,null,null,null,null,null,null,null,null,"",null,null,true]
[null,null,null,null,null,null,null,null,null,null,null,null,"",null,null,true]
[null,null,null,null,null,null,null,null,null,null,null,null,"",null,null,true]
[null,null,null,null,null,null,null,null,null,null,null,null,"",null,null,true]
[null,null,null,null,null,null,null,null,null,null,null,null,"",null,null,true]
[null,null,null,null,null,null,null,null,null,null,null,null,"",null,null,true]
[null,null,null,null,null,null,null,null,null,null,null,null,"",null,null,true]
[null,null,null,null,null,null,null,null,null,null,null,null,"",null,null,true]
[null,null,null,null,null,null,null,null,null,null,null,null,"",null,null,true]
[null,null,null,null,null,null,null,null,null,null,null,null,"",null,null,true]
[null,null,null,null,null,null,null,null,null,null,null,null,"",null,null,true]
[null,null,null,null,null,null,null,null,null,null,null,null,"",null,null,true]
[null,null,null,null,null,null,null,null,null,null,null,null,"",null,null,true]
[null,null,null,null,null,null,null,null,null,null,null,null,"",null,null,true]
[null,null,null,null,null,null,null,null,null,null,null,null,"",null,null,true]
[null,null,null,null,null,null,null,null,null,null,null,null,"",null,null,true]
[null,null,null,null,null,null,null,null,null,null,null,null,"",null,null,true]
[null,null,null,null,null,null,null,null,null,null,null,null,"",null,null,true]
[null,null,null,null,null,null,null,null,null,null,null,null,"",null,null,true]
[null,null,null,null,null,null,null,null,null,null,null,null,"",null,null,true]
[null,null,null,null,null,null,null,null,null,null,null,null,"",null,null,true]
[null,null,null,null,null,null,null,null,null,null,null,null,"",null,null,true]
[null,null,null,null,null,null,null,null,null,null,null,null,"",null,null,true]
[null,null,null,null,null,null,null,null,null,null,null,null,"",null,null,true]
[null,null,null,null,null,null,null,null,null,null,null,null,"",null,null,true]
[null,null,null,null,null,null,null,null,null,null,null,null,"",null,null,true]
[null,null,null,null,null,null,null,null,null,null,null,null,"",null,null,true]
[null,null,null,null,null,null,null,null,null,null,null,null,"",null,null,true]
[null,null,null,null,null,null,null,null,null,null,null,null,"",null,null,true]
[null,null,null,null,null,null,null,null,null,null,null,null,"",null,null,true]
[null,null,null,null,null,null,null,null,null,null,null,null,"",null,null,true]
[null,null,null,null,null,null,null,null,null,null,null,null,"",null,null,true]
[null,null,null,null,null,null,null,null,null,null,null,null,"",null,null,true]
[null,null,null,null,null,null,null,null,null,null,null,null,"",null,null,true]
[null,null,null,null,null,null,null,null,null,null,null,null,"",null,null,true]
[null,null,null,null,null,null,null,null,null,null,null,null,"",null,null,true]
[null,null,null,null,null,null,null,null,null,null,null,null,"",null,null,true]
[null,null,null,null,null,null,null,null,null,null,null,null,"",null,null,true]
[null,null,null,null,null,null,null,null,null,null,null,null,"",null,null,true]
[null,null,null,null,null,null,null,null,null,null,null,null,"",null,null,true]
[null,null,null,null,null,null,null,null,null,null,null,null,"",null,null,true]
[null,null,null,null,null,null,null,null,null,null,null,null,"",null,null,true]
[null,null,null,null,null,null,null,null,null,null,null,null,"",null,null,true]
[null,null,null,null,null,null,null,null,null,null,null,null,"",null,null,true]
[null,null,null,null,null,null,null,null,null,null,null,null,"",null,null,true]
[null,null,null,null,null,null,null,null,null,null,null,null,"",null,null,true]
[null,null,null,null,null,null,null,null,null,null,null,null,"",null,null,true]
[null,null,null,null,null,null,null,null,null,null,null,null,"",null,null,true]
[null,null,null,null,null,null,null,null,null,null,null,null,"",null,null,true]
[null,null,null,null,null,null,null,null,null,null,null,null,"",null,null,true]
[null,null,null,null,null,null,null,null,null,null,null,null,"",null,null,true]
[null,null,null,null,null,null,null,null,null,null,null,null,"",null,null,true]
[null,null,null,null,null,null,null,null,null,null,null,null,{"$f":"CONCATENATE(H1155,I1155,J1155,K1155,L1155)","v":""},null,null,true]
[null,null,null,null,null,null,null,null,null,null,null,null,"",null,null,true]
[null,null,null,null,null,null,null,null,null,null,null,null,"",null,null,true]
[null,null,null,null,null,null,null,null,null,null,null,null,"",null,null,true]
[null,null,null,null,null,null,null,null,null,null,null,null,"",null,null,true]
[null,null,null,null,null,null,null,null,null,null,null,null,"",null,null,true]
[null,null,null,null,null,null,null,null,null,null,null,null,"",null,null,true]
[null,null,null,null,null,null,null,null,null,null,null,null,"",null,null,true]
[null,null,null,null,null,null,null,null,null,null,null,null,"",null,null,true]
[null,null,null,null,null,null,null,null,null,null,null,null,"",null,null,true]
[null,null,null,null,null,null,null,null,null,null,null,null,"",null,null,true]
[null,null,null,null,null,null,null,null,null,null,null,null,"",null,null,true]
[null,null,null,null,null,null,null,null,null,null,null,null,"",null,null,true]
[null,null,null,null,null,null,null,null,null,null,null,null,"",null,null,true]
[null,null,null,null,null,null,null,null,null,null,null,null,"",null,null,true]
[null,null,null,null,null,null,null,null,null,null,null,null,"",null,null,true]
[null,null,null,null,null,null,null,null,null,null,null,null,"",null,null,true]
[null,null,null,null,null,null,null,null,null,null,null,null,"",null,null,true]
[null,null,null,null,null,null,null,null,null,null,null,null,"",null,null,true]
[null,null,null,null,null,null,null,null,null,null,null,null,"",null,null,true]
[null,null,null,null,null,null,null,null,null,null,null,null,"",null,null,true]
[null,null,null,null,null,null,null,null,null,null,null,null,"",null,null,true]
[null,null,null,null,null,null,null,null,null,null,null,null,"",null,null,true]
[null,null,null,null,null,null,null,null,null,null,null,null,"",null,null,true]
[null,null,null,null,null,null,null,null,null,null,null,null,"",null,null,true]
[null,null,null,null,null,null,null,null,null,null,null,null,"",null,null,true]
[null,null,null,null,null,null,null,null,null,null,null,null,"",null,null,true]
[null,null,null,null,null,null,null,null,null,null,null,null,"",null,null,true]
[null,null,null,null,null,null,null,null,null,null,null,null,"",null,null,true]
[null,null,null,null,null,null,null,null,null,null,null,null,"",null,null,true]
[null,null,null,null,null,null,null,null,null,null,null,null,"",null,null,true]
[null,null,null,null,null,null,null,null,null,null,null,null,"",null,null,true]
[null,null,null,null,null,null,null,null,null,null,null,null,"",null,null,true]
[null,null,null,null,null,null,null,null,null,null,null,null,"",null,null,true]
[null,null,null,null,null,null,null,null,null,null,null,null,"",null,null,true]
[null,null,null,null,null,null,null,null,null,null,null,null,"",null,null,true]
[null,null,null,null,null,null,null,null,null,null,null,null,"",null,null,true]
[null,null,null,null,null,null,null,null,null,null,null,null,"",null,null,true]
[null,null,null,null,null,null,null,null,null,null,null,null,"",null,null,true]
[null,null,null,null,null,null,null,null,null,null,null,null,"",null,null,true]
[null,null,null,null,null,null,null,null,null,null,null,null,"",null,null,true]
[null,null,null,null,null,null,null,null,null,null,null,null,"",null,null,true]
[null,null,null,null,null,null,null,null,null,null,null,null,"",null,null,true]
[null,null,null,null,null,null,null,null,null,null,null,null,"",null,null,true]
[null,null,null,null,null,null,null,null,null,null,null,null,"",null,null,true]
[null,null,null,null,null,null,null,null,null,null,null,null,"",null,null,true]
[null,null,null,null,null,null,null,null,null,null,null,null,"",null,null,true]
[null,null,null,null,null,null,null,null,null,null,null,null,"",null,null,true]
[null,null,null,null,null,null,null,null,null,null,null,null,"",null,null,true]
[null,null,null,null,null,null,null,null,null,null,null,null,"",null,null,true]
[null,null,null,null,null,null,null,null,null,null,null,null,"",null,null,true]
[null,null,null,null,null,null,null,null,null,null,null,null,"",null,null,true]
[null,null,null,null,null,null,null,null,null,null,null,null,"",null,null,true]
[null,null,null,null,null,null,null,null,null,null,null,null,"",null,null,true]
[null,null,null,null,null,null,null,null,null,null,null,null,"",null,null,true]
[null,null,null,null,null,null,null,null,null,null,null,null,"",null,null,true]
[null,null,null,null,null,null,null,null,null,null,null,null,"",null,null,true]
[null,null,null,null,null,null,null,null,null,null,null,null,"",null,null,true]
[null,null,null,null,null,null,null,null,null,null,null,null,"",null,null,true]
[null,null,null,null,null,null,null,null,null,null,null,null,"",null,null,true]
[null,null,null,null,null,null,null,null,null,null,null,null,"",null,null,true]
[null,null,null,null,null,null,null,null,null,null,null,null,"",null,null,true]
[null,null,null,null,null,null,null,null,null,null,null,null,"",null,null,true]
[null,null,null,null,null,null,null,null,null,null,null,null,"",null,null,true]
[null,null,null,null,null,null,null,null,null,null,null,null,{"$f":"CONCATENATE(H1219,I1219,J1219,K1219,L1219)","v":""},null,null,true]
[null,null,null,null,null,null,null,null,null,null,null,null,"",null,null,true]
[null,null,null,null,null,null,null,null,null,null,null,null,"",null,null,true]
[null,null,null,null,null,null,null,null,null,null,null,null,"",null,null,true]
[null,null,null,null,null,null,null,null,null,null,null,null,"",null,null,true]
[null,null,null,null,null,null,null,null,null,null,null,null,"",null,null,true]
[null,null,null,null,null,null,null,null,null,null,null,null,"",null,null,true]
[null,null,null,null,null,null,null,null,null,null,null,null,"",null,null,true]
[null,null,null,null,null,null,null,null,null,null,null,null,"",null,null,true]
[null,null,null,null,null,null,null,null,null,null,null,null,"",null,null,true]
[null,null,null,null,null,null,null,null,null,null,null,null,"",null,null,true]
[null,null,null,null,null,null,null,null,null,null,null,null,"",null,null,true]
[null,null,null,null,null,null,null,null,null,null,null,null,"",null,null,true]
[null,null,null,null,null,null,null,null,null,null,null,null,"",null,null,true]
[null,null,null,null,null,null,null,null,null,null,null,null,"",null,null,true]
[null,null,null,null,null,null,null,null,null,null,null,null,"",null,null,true]
[null,null,null,null,null,null,null,null,null,null,null,null,"",null,null,true]
[null,null,null,null,null,null,null,null,null,null,null,null,"",null,null,true]
[null,null,null,null,null,null,null,null,null,null,null,null,"",null,null,true]
[null,null,null,null,null,null,null,null,null,null,null,null,"",null,null,true]
[null,null,null,null,null,null,null,null,null,null,null,null,"",null,null,true]
[null,null,null,null,null,null,null,null,null,null,null,null,"",null,null,true]
[null,null,null,null,null,null,null,null,null,null,null,null,"",null,null,true]
[null,null,null,null,null,null,null,null,null,null,null,null,"",null,null,true]
[null,null,null,null,null,null,null,null,null,null,null,null,"",null,null,true]
[null,null,null,null,null,null,null,null,null,null,null,null,"",null,null,true]
[null,null,null,null,null,null,null,null,null,null,null,null,"",null,null,true]
[null,null,null,null,null,null,null,null,null,null,null,null,"",null,null,true]
[null,null,null,null,null,null,null,null,null,null,null,null,"",null,null,true]
[null,null,null,null,null,null,null,null,null,null,null,null,"",null,null,true]
[null,null,null,null,null,null,null,null,null,null,null,null,"",null,null,true]
[null,null,null,null,null,null,null,null,null,null,null,null,"",null,null,true]
[null,null,null,null,null,null,null,null,null,null,null,null,"",null,null,true]
[null,null,null,null,null,null,null,null,null,null,null,null,"",null,null,true]
[null,null,null,null,null,null,null,null,null,null,null,null,"",null,null,true]
[null,null,null,null,null,null,null,null,null,null,null,null,"",null,null,true]
[null,null,null,null,null,null,null,null,null,null,null,null,"",null,null,true]
[null,null,null,null,null,null,null,null,null,null,null,null,"",null,null,true]
[null,null,null,null,null,null,null,null,null,null,null,null,"",null,null,true]
[null,null,null,null,null,null,null,null,null,null,null,null,"",null,null,true]
[null,null,null,null,null,null,null,null,null,null,null,null,"",null,null,true]
[null,null,null,null,null,null,null,null,null,null,null,null,"",null,null,true]
[null,null,null,null,null,null,null,null,null,null,null,null,"",null,null,true]
[null,null,null,null,null,null,null,null,null,null,null,null,"",null,null,true]
[null,null,null,null,null,null,null,null,null,null,null,null,"",null,null,true]
[null,null,null,null,null,null,null,null,null,null,null,null,"",null,null,true]
[null,null,null,null,null,null,null,null,null,null,null,null,"",null,null,true]
[null,null,null,null,null,null,null,null,null,null,null,null,"",null,null,true]
[null,null,null,null,null,null,null,null,null,null,null,null,"",null,null,true]
[null,null,null,null,null,null,null,null,null,null,null,null,"",null,null,true]
[null,null,null,null,null,null,null,null,null,null,null,null,"",null,null,true]
[null,null,null,null,null,null,null,null,null,null,null,null,"",null,null,true]
[null,null,null,null,null,null,null,null,null,null,null,null,"",null,null,true]
[null,null,null,null,null,null,null,null,null,null,null,null,"",null,null,true]
[null,null,null,null,null,null,null,null,null,null,null,null,"",null,null,true]
[null,null,null,null,null,null,null,null,null,null,null,null,"",null,null,true]
[null,null,null,null,null,null,null,null,null,null,null,null,"",null,null,true]
[null,null,null,null,null,null,null,null,null,null,null,null,"",null,null,true]
[null,null,null,null,null,null,null,null,null,null,null,null,"",null,null,true]
[null,null,null,null,null,null,null,null,null,null,null,null,"",null,null,true]
[null,null,null,null,null,null,null,null,null,null,null,null,"",null,null,true]
[null,null,null,null,null,null,null,null,null,null,null,null,"",null,null,true]
[null,null,null,null,null,null,null,null,null,null,null,null,"",null,null,true]
[null,null,null,null,null,null,null,null,null,null,null,null,"",null,null,true]
[null,null,null,null,null,null,null,null,null,null,null,null,{"$f":"CONCATENATE(H1283,I1283,J1283,K1283,L1283)","v":""},null,null,true]
[null,null,null,null,null,null,null,null,null,null,null,null,"",null,null,true]
[null,null,null,null,null,null,null,null,null,null,null,null,"",null,null,true]
[null,null,null,null,null,null,null,null,null,null,null,null,"",null,null,true]
[null,null,null,null,null,null,null,null,null,null,null,null,"",null,null,true]
[null,null,null,null,null,null,null,null,null,null,null,null,"",null,null,true]
[null,null,null,null,null,null,null,null,null,null,null,null,"",null,null,true]
[null,null,null,null,null,null,null,null,null,null,null,null,"",null,null,true]
[null,null,null,null,null,null,null,null,null,null,null,null,"",null,null,true]
[null,null,null,null,null,null,null,null,null,null,null,null,"",null,null,true]
[null,null,null,null,null,null,null,null,null,null,null,null,"",null,null,true]
[null,null,null,null,null,null,null,null,null,null,null,null,"",null,null,true]
[null,null,null,null,null,null,null,null,null,null,null,null,"",null,null,true]
[null,null,null,null,null,null,null,null,null,null,null,null,"",null,null,true]
[null,null,null,null,null,null,null,null,null,null,null,null,"",null,null,true]
[null,null,null,null,null,null,null,null,null,null,null,null,"",null,null,true]
[null,null,null,null,null,null,null,null,null,null,null,null,"",null,null,true]
[null,null,null,null,null,null,null,null,null,null,null,null,"",null,null,true]
[null,null,null,null,null,null,null,null,null,null,null,null,"",null,null,true]
[null,null,null,null,null,null,null,null,null,null,null,null,"",null,null,true]
[null,null,null,null,null,null,null,null,null,null,null,null,"",null,null,true]
[null,null,null,null,null,null,null,null,null,null,null,null,"",null,null,true]
[null,null,null,null,null,null,null,null,null,null,null,null,"",null,null,true]
[null,null,null,null,null,null,null,null,null,null,null,null,"",null,null,true]
[null,null,null,null,null,null,null,null,null,null,null,null,"",null,null,true]
[null,null,null,null,null,null,null,null,null,null,null,null,"",null,null,true]
[null,null,null,null,null,null,null,null,null,null,null,null,"",null,null,true]
[null,null,null,null,null,null,null,null,null,null,null,null,"",null,null,true]
[null,null,null,null,null,null,null,null,null,null,null,null,"",null,null,true]
[null,null,null,null,null,null,null,null,null,null,null,null,"",null,null,true]
[null,null,null,null,null,null,null,null,null,null,null,null,"",null,null,true]
[null,null,null,null,null,null,null,null,null,null,null,null,"",null,null,true]
[null,null,null,null,null,null,null,null,null,null,null,null,"",null,null,true]
[null,null,null,null,null,null,null,null,null,null,null,null,"",null,null,true]
[null,null,null,null,null,null,null,null,null,null,null,null,"",null,null,true]
[null,null,null,null,null,null,null,null,null,null,null,null,"",null,null,true]
[null,null,null,null,null,null,null,null,null,null,null,null,"",null,null,true]
[null,null,null,null,null,null,null,null,null,null,null,null,"",null,null,true]
[null,null,null,null,null,null,null,null,null,null,null,null,"",null,null,true]
[null,null,null,null,null,null,null,null,null,null,null,null,"",null,null,true]
[null,null,null,null,null,null,null,null,null,null,null,null,"",null,null,true]
[null,null,null,null,null,null,null,null,null,null,null,null,"",null,null,true]
[null,null,null,null,null,null,null,null,null,null,null,null,"",null,null,true]
[null,null,null,null,null,null,null,null,null,null,null,null,"",null,null,true]
[null,null,null,null,null,null,null,null,null,null,null,null,"",null,null,true]
[null,null,null,null,null,null,null,null,null,null,null,null,"",null,null,true]
[null,null,null,null,null,null,null,null,null,null,null,null,"",null,null,true]
[null,null,null,null,null,null,null,null,null,null,null,null,"",null,null,true]
[null,null,null,null,null,null,null,null,null,null,null,null,"",null,null,true]
[null,null,null,null,null,null,null,null,null,null,null,null,"",null,null,true]
[null,null,null,null,null,null,null,null,null,null,null,null,"",null,null,true]
[null,null,null,null,null,null,null,null,null,null,null,null,"",null,null,true]
[null,null,null,null,null,null,null,null,null,null,null,null,"",null,null,true]
[null,null,null,null,null,null,null,null,null,null,null,null,"",null,null,true]
[null,null,null,null,null,null,null,null,null,null,null,null,"",null,null,true]
[null,null,null,null,null,null,null,null,null,null,null,null,"",null,null,true]
[null,null,null,null,null,null,null,null,null,null,null,null,"",null,null,true]
[null,null,null,null,null,null,null,null,null,null,null,null,"",null,null,true]
[null,null,null,null,null,null,null,null,null,null,null,null,"",null,null,true]
[null,null,null,null,null,null,null,null,null,null,null,null,"",null,null,true]
[null,null,null,null,null,null,null,null,null,null,null,null,"",null,null,true]
[null,null,null,null,null,null,null,null,null,null,null,null,"",null,null,true]
[null,null,null,null,null,null,null,null,null,null,null,null,"",null,null,true]
[null,null,null,null,null,null,null,null,null,null,null,null,"",null,null,true]
[null,null,null,null,null,null,null,null,null,null,null,null,{"$f":"CONCATENATE(H1347,I1347,J1347,K1347,L1347)","v":""},null,null,true]
[null,null,null,null,null,null,null,null,null,null,null,null,"",null,null,true]
[null,null,null,null,null,null,null,null,null,null,null,null,"",null,null,true]
[null,null,null,null,null,null,null,null,null,null,null,null,"",null,null,true]
[null,null,null,null,null,null,null,null,null,null,null,null,"",null,null,true]
[null,null,null,null,null,null,null,null,null,null,null,null,"",null,null,true]
[null,null,null,null,null,null,null,null,null,null,null,null,"",null,null,true]
[null,null,null,null,null,null,null,null,null,null,null,null,"",null,null,true]
[null,null,null,null,null,null,null,null,null,null,null,null,"",null,null,true]
[null,null,null,null,null,null,null,null,null,null,null,null,"",null,null,true]
[null,null,null,null,null,null,null,null,null,null,null,null,"",null,null,true]
[null,null,null,null,null,null,null,null,null,null,null,null,"",null,null,true]
[null,null,null,null,null,null,null,null,null,null,null,null,"",null,null,true]
[null,null,null,null,null,null,null,null,null,null,null,null,"",null,null,true]
[null,null,null,null,null,null,null,null,null,null,null,null,"",null,null,true]
[null,null,null,null,null,null,null,null,null,null,null,null,"",null,null,true]
[null,null,null,null,null,null,null,null,null,null,null,null,"",null,null,true]
[null,null,null,null,null,null,null,null,null,null,null,null,"",null,null,true]
[null,null,null,null,null,null,null,null,null,null,null,null,"",null,null,true]
[null,null,null,null,null,null,null,null,null,null,null,null,"",null,null,true]
[null,null,null,null,null,null,null,null,null,null,null,null,"",null,null,true]
[null,null,null,null,null,null,null,null,null,null,null,null,"",null,null,true]
[null,null,null,null,null,null,null,null,null,null,null,null,"",null,null,true]
[null,null,null,null,null,null,null,null,null,null,null,null,"",null,null,true]
[null,null,null,null,null,null,null,null,null,null,null,null,"",null,null,true]
[null,null,null,null,null,null,null,null,null,null,null,null,"",null,null,true]
[null,null,null,null,null,null,null,null,null,null,null,null,"",null,null,true]
[null,null,null,null,null,null,null,null,null,null,null,null,"",null,null,true]
[null,null,null,null,null,null,null,null,null,null,null,null,"",null,null,true]
[null,null,null,null,null,null,null,null,null,null,null,null,"",null,null,true]
[null,null,null,null,null,null,null,null,null,null,null,null,"",null,null,true]
[null,null,null,null,null,null,null,null,null,null,null,null,"",null,null,true]
[null,null,null,null,null,null,null,null,null,null,null,null,"",null,null,true]
[null,null,null,null,null,null,null,null,null,null,null,null,"",null,null,true]
[null,null,null,null,null,null,null,null,null,null,null,null,"",null,null,true]
[null,null,null,null,null,null,null,null,null,null,null,null,"",null,null,true]
[null,null,null,null,null,null,null,null,null,null,null,null,"",null,null,true]
[null,null,null,null,null,null,null,null,null,null,null,null,"",null,null,true]
[null,null,null,null,null,null,null,null,null,null,null,null,"",null,null,true]
[null,null,null,null,null,null,null,null,null,null,null,null,"",null,null,true]
[null,null,null,null,null,null,null,null,null,null,null,null,"",null,null,true]
[null,null,null,null,null,null,null,null,null,null,null,null,"",null,null,true]
[null,null,null,null,null,null,null,null,null,null,null,null,"",null,null,true]
[null,null,null,null,null,null,null,null,null,null,null,null,"",null,null,true]
[null,null,null,null,null,null,null,null,null,null,null,null,"",null,null,true]
[null,null,null,null,null,null,null,null,null,null,null,null,"",null,null,true]
[null,null,null,null,null,null,null,null,null,null,null,null,"",null,null,true]
[null,null,null,null,null,null,null,null,null,null,null,null,"",null,null,true]
[null,null,null,null,null,null,null,null,null,null,null,null,"",null,null,true]
[null,null,null,null,null,null,null,null,null,null,null,null,"",null,null,true]
[null,null,null,null,null,null,null,null,null,null,null,null,"",null,null,true]
[null,null,null,null,null,null,null,null,null,null,null,null,"",null,null,true]
[null,null,null,null,null,null,null,null,null,null,null,null,"",null,null,true]
[null,null,null,null,null,null,null,null,null,null,null,null,"",null,null,true]
[null,null,null,null,null,null,null,null,null,null,null,null,"",null,null,true]
[null,null,null,null,null,null,null,null,null,null,null,null,"",null,null,true]
[null,null,null,null,null,null,null,null,null,null,null,null,"",null,null,true]
[null,null,null,null,null,null,null,null,null,null,null,null,"",null,null,true]
[null,null,null,null,null,null,null,null,null,null,null,null,"",null,null,true]
[null,null,null,null,null,null,null,null,null,null,null,null,"",null,null,true]
[null,null,null,null,null,null,null,null,null,null,null,null,"",null,null,true]
[null,null,null,null,null,null,null,null,null,null,null,null,"",null,null,true]
[null,null,null,null,null,null,null,null,null,null,null,null,"",null,null,true]
[null,null,null,null,null,null,null,null,null,null,null,null,"",null,null,true]
[null,null,null,null,null,null,null,null,null,null,null,null,{"$f":"CONCATENATE(H1411,I1411,J1411,K1411,L1411)","v":""},null,null,true]
[null,null,null,null,null,null,null,null,null,null,null,null,"",null,null,true]
[null,null,null,null,null,null,null,null,null,null,null,null,"",null,null,true]
[null,null,null,null,null,null,null,null,null,null,null,null,"",null,null,true]
[null,null,null,null,null,null,null,null,null,null,null,null,"",null,null,true]
[null,null,null,null,null,null,null,null,null,null,null,null,"",null,null,true]
[null,null,null,null,null,null,null,null,null,null,null,null,"",null,null,true]
[null,null,null,null,null,null,null,null,null,null,null,null,"",null,null,true]
[null,null,null,null,null,null,null,null,null,null,null,null,"",null,null,true]
[null,null,null,null,null,null,null,null,null,null,null,null,"",null,null,true]
[null,null,null,null,null,null,null,null,null,null,null,null,"",null,null,true]
[null,null,null,null,null,null,null,null,null,null,null,null,"",null,null,true]
[null,null,null,null,null,null,null,null,null,null,null,null,"",null,null,true]
[null,null,null,null,null,null,null,null,null,null,null,null,"",null,null,true]
[null,null,null,null,null,null,null,null,null,null,null,null,"",null,null,true]
[null,null,null,null,null,null,null,null,null,null,null,null,"",null,null,true]
[null,null,null,null,null,null,null,null,null,null,null,null,"",null,null,true]
[null,null,null,null,null,null,null,null,null,null,null,null,"",null,null,true]
[null,null,null,null,null,null,null,null,null,null,null,null,"",null,null,true]
[null,null,null,null,null,null,null,null,null,null,null,null,"",null,null,true]
[null,null,null,null,null,null,null,null,null,null,null,null,"",null,null,true]
[null,null,null,null,null,null,null,null,null,null,null,null,"",null,null,true]
[null,null,null,null,null,null,null,null,null,null,null,null,"",null,null,true]
[null,null,null,null,null,null,null,null,null,null,null,null,"",null,null,true]
[null,null,null,null,null,null,null,null,null,null,null,null,"",null,null,true]
[null,null,null,null,null,null,null,null,null,null,null,null,"",null,null,true]
[null,null,null,null,null,null,null,null,null,null,null,null,"",null,null,true]
[null,null,null,null,null,null,null,null,null,null,null,null,"",null,null,true]
[null,null,null,null,null,null,null,null,null,null,null,null,"",null,null,true]
[null,null,null,null,null,null,null,null,null,null,null,null,"",null,null,true]
[null,null,null,null,null,null,null,null,null,null,null,null,"",null,null,true]
[null,null,null,null,null,null,null,null,null,null,null,null,"",null,null,true]
[null,null,null,null,null,null,null,null,null,null,null,null,"",null,null,true]
[null,null,null,null,null,null,null,null,null,null,null,null,"",null,null,true]
[null,null,null,null,null,null,null,null,null,null,null,null,"",null,null,true]
[null,null,null,null,null,null,null,null,null,null,null,null,"",null,null,true]
[null,null,null,null,null,null,null,null,null,null,null,null,"",null,null,true]
[null,null,null,null,null,null,null,null,null,null,null,null,"",null,null,true]
[null,null,null,null,null,null,null,null,null,null,null,null,"",null,null,true]
[null,null,null,null,null,null,null,null,null,null,null,null,"",null,null,true]
[null,null,null,null,null,null,null,null,null,null,null,null,"",null,null,true]
[null,null,null,null,null,null,null,null,null,null,null,null,"",null,null,true]
[null,null,null,null,null,null,null,null,null,null,null,null,"",null,null,true]
[null,null,null,null,null,null,null,null,null,null,null,null,"",null,null,true]
[null,null,null,null,null,null,null,null,null,null,null,null,"",null,null,true]
[null,null,null,null,null,null,null,null,null,null,null,null,"",null,null,true]
[null,null,null,null,null,null,null,null,null,null,null,null,"",null,null,true]
[null,null,null,null,null,null,null,null,null,null,null,null,"",null,null,true]
[null,null,null,null,null,null,null,null,null,null,null,null,"",null,null,true]
[null,null,null,null,null,null,null,null,null,null,null,null,"",null,null,true]
[null,null,null,null,null,null,null,null,null,null,null,null,"",null,null,true]
[null,null,null,null,null,null,null,null,null,null,null,null,"",null,null,true]
[null,null,null,null,null,null,null,null,null,null,null,null,"",null,null,true]
[null,null,null,null,null,null,null,null,null,null,null,null,"",null,null,true]
[null,null,null,null,null,null,null,null,null,null,null,null,"",null,null,true]
[null,null,null,null,null,null,null,null,null,null,null,null,"",null,null,true]
[null,null,null,null,null,null,null,null,null,null,null,null,"",null,null,true]
[null,null,null,null,null,null,null,null,null,null,null,null,"",null,null,true]
[null,null,null,null,null,null,null,null,null,null,null,null,"",null,null,true]
[null,null,null,null,null,null,null,null,null,null,null,null,"",null,null,true]
[null,null,null,null,null,null,null,null,null,null,null,null,"",null,null,true]
[null,null,null,null,null,null,null,null,null,null,null,null,"",null,null,true]
[null,null,null,null,null,null,null,null,null,null,null,null,"",null,null,true]
[null,null,null,null,null,null,null,null,null,null,null,null,"",null,null,true]
[null,null,null,null,null,null,null,null,null,null,null,null,{"$f":"CONCATENATE(H1475,I1475,J1475,K1475,L1475)","v":""},null,null,true]
[null,null,null,null,null,null,null,null,null,null,null,null,"",null,null,true]
[null,null,null,null,null,null,null,null,null,null,null,null,"",null,null,true]
[null,null,null,null,null,null,null,null,null,null,null,null,"",null,null,true]
[null,null,null,null,null,null,null,null,null,null,null,null,"",null,null,true]
[null,null,null,null,null,null,null,null,null,null,null,null,"",null,null,true]
[null,null,null,null,null,null,null,null,null,null,null,null,"",null,null,true]
[null,null,null,null,null,null,null,null,null,null,null,null,"",null,null,true]
[null,null,null,null,null,null,null,null,null,null,null,null,"",null,null,true]
[null,null,null,null,null,null,null,null,null,null,null,null,"",null,null,true]
[null,null,null,null,null,null,null,null,null,null,null,null,"",null,null,true]
[null,null,null,null,null,null,null,null,null,null,null,null,"",null,null,true]
[null,null,null,null,null,null,null,null,null,null,null,null,"",null,null,true]
[null,null,null,null,null,null,null,null,null,null,null,null,"",null,null,true]
[null,null,null,null,null,null,null,null,null,null,null,null,"",null,null,true]
[null,null,null,null,null,null,null,null,null,null,null,null,"",null,null,true]
[null,null,null,null,null,null,null,null,null,null,null,null,"",null,null,true]
[null,null,null,null,null,null,null,null,null,null,null,null,"",null,null,true]
[null,null,null,null,null,null,null,null,null,null,null,null,"",null,null,true]
[null,null,null,null,null,null,null,null,null,null,null,null,"",null,null,true]
[null,null,null,null,null,null,null,null,null,null,null,null,"",null,null,true]
[null,null,null,null,null,null,null,null,null,null,null,null,"",null,null,true]
[null,null,null,null,null,null,null,null,null,null,null,null,"",null,null,true]
[null,null,null,null,null,null,null,null,null,null,null,null,"",null,null,true]
[null,null,null,null,null,null,null,null,null,null,null,null,"",null,null,true]
[null,null,null,null,null,null,null,null,null,null,null,null,"",null,null,true]
[null,null,null,null,null,null,null,null,null,null,null,null,"",null,null,true]
[null,null,null,null,null,null,null,null,null,null,null,null,"",null,null,true]
[null,null,null,null,null,null,null,null,null,null,null,null,"",null,null,true]
[null,null,null,null,null,null,null,null,null,null,null,null,"",null,null,true]
[null,null,null,null,null,null,null,null,null,null,null,null,"",null,null,true]
[null,null,null,null,null,null,null,null,null,null,null,null,"",null,null,true]
[null,null,null,null,null,null,null,null,null,null,null,null,"",null,null,true]
[null,null,null,null,null,null,null,null,null,null,null,null,"",null,null,true]
[null,null,null,null,null,null,null,null,null,null,null,null,"",null,null,true]
[null,null,null,null,null,null,null,null,null,null,null,null,"",null,null,true]
[null,null,null,null,null,null,null,null,null,null,null,null,"",null,null,true]
[null,null,null,null,null,null,null,null,null,null,null,null,"",null,null,true]
[null,null,null,null,null,null,null,null,null,null,null,null,"",null,null,true]
[null,null,null,null,null,null,null,null,null,null,null,null,"",null,null,true]
[null,null,null,null,null,null,null,null,null,null,null,null,"",null,null,true]
[null,null,null,null,null,null,null,null,null,null,null,null,"",null,null,true]
[null,null,null,null,null,null,null,null,null,null,null,null,"",null,null,true]
[null,null,null,null,null,null,null,null,null,null,null,null,"",null,null,true]
[null,null,null,null,null,null,null,null,null,null,null,null,"",null,null,true]
[null,null,null,null,null,null,null,null,null,null,null,null,"",null,null,true]
[null,null,null,null,null,null,null,null,null,null,null,null,"",null,null,true]
[null,null,null,null,null,null,null,null,null,null,null,null,"",null,null,true]
[null,null,null,null,null,null,null,null,null,null,null,null,"",null,null,true]
[null,null,null,null,null,null,null,null,null,null,null,null,"",null,null,true]
[null,null,null,null,null,null,null,null,null,null,null,null,"",null,null,true]
[null,null,null,null,null,null,null,null,null,null,null,null,"",null,null,true]
[null,null,null,null,null,null,null,null,null,null,null,null,"",null,null,true]
[null,null,null,null,null,null,null,null,null,null,null,null,"",null,null,true]
[null,null,null,null,null,null,null,null,null,null,null,null,"",null,null,true]
[null,null,null,null,null,null,null,null,null,null,null,null,"",null,null,true]
[null,null,null,null,null,null,null,null,null,null,null,null,"",null,null,true]
[null,null,null,null,null,null,null,null,null,null,null,null,"",null,null,true]
[null,null,null,null,null,null,null,null,null,null,null,null,"",null,null,true]
[null,null,null,null,null,null,null,null,null,null,null,null,"",null,null,true]
[null,null,null,null,null,null,null,null,null,null,null,null,"",null,null,true]
[null,null,null,null,null,null,null,null,null,null,null,null,"",null,null,true]
[null,null,null,null,null,null,null,null,null,null,null,null,"",null,null,true]
[null,null,null,null,null,null,null,null,null,null,null,null,"",null,null,true]
[null,null,null,null,null,null,null,null,null,null,null,null,{"$f":"CONCATENATE(H1539,I1539,J1539,K1539,L1539)","v":""},null,null,true]
[null,null,null,null,null,null,null,null,null,null,null,null,"",null,null,true]
[null,null,null,null,null,null,null,null,null,null,null,null,"",null,null,true]
[null,null,null,null,null,null,null,null,null,null,null,null,"",null,null,true]
[null,null,null,null,null,null,null,null,null,null,null,null,"",null,null,true]
[null,null,null,null,null,null,null,null,null,null,null,null,"",null,null,true]
[null,null,null,null,null,null,null,null,null,null,null,null,"",null,null,true]
[null,null,null,null,null,null,null,null,null,null,null,null,"",null,null,true]
[null,null,null,null,null,null,null,null,null,null,null,null,"",null,null,true]
[null,null,null,null,null,null,null,null,null,null,null,null,"",null,null,true]
[null,null,null,null,null,null,null,null,null,null,null,null,"",null,null,true]
[null,null,null,null,null,null,null,null,null,null,null,null,"",null,null,true]
[null,null,null,null,null,null,null,null,null,null,null,null,"",null,null,true]

{"sheet":"LookupLists","index":2,"n_rows":79,"n_cols":7,"rows_kept":79,"cut":false,"hidden":true,"merged":[]}
["Course ID","Course Type","Building","Room Number","Meeting Days","Start Time","End Time"]
["ACCT","Lab","Administration","ADM 103","M"]
["ART","Lecture","Yu Hak Hahn","ADM 111","T"]
["BA",null,"HRC","ADM 201","W"]
["BIO",null,"Ralph Center","ADM 202","R"]
["CART",null,"Winchester","ADM 203","F"]
["CHEM",null,null,"ADM 203A","TR"]
["CHIN",null,null,"ADM 204","MW"]
["CIS",null,null,"ADM 205","MWF"]
["CJC",null,null,"ADM 206A","MTWR"]
["CL",null,null,"ADM 206B","MTWRF"]
["CM",null,null,"ADM 207"]
["CS",null,null,"ADM 208"]
["CSD",null,null,"ADM 209A"]
["DEV",null,null,"ADM 209B"]
["ECON",null,null,"ADM 210"]
["ED",null,null,"ADM 210A"]
["EDAR",null,null,"ADM 211"]
["EDEL",null,null,"ADM 214"]
["EDEX",null,null,"ADM 215"]
["EDMG",null,null,"ADM 301"]
["EDMU",null,null,"ADM 302"]
["EDPH",null,null,"ADM 303"]
["EDPT",null,null,"ADM 304"]
["EDSE",null,null,"ADM 305"]
["EDSP",null,null,"ADM 306"]
["EDUC",null,null,"ADM 307A"]
["ENGL",null,null,"ADM 307B"]
["ENGR",null,null,"ADM 308"]
["ENSC",null,null,"ADM 309"]
["ENTR",null,null,"ADM 401"]
["EXSC",null,null,"ADM 403"]
["FA",null,null,"ADM 412"]
["FREN",null,null,"ADM 413"]
["FS",null,null,"HRC HRC1"]
["FSCI",null,null,"HSC 105A"]
["GEOG",null,null,"HSC 122A"]
["GERM",null,null,"HSC H101"]
["GS",null,null,"HSC H104"]
["HIST",null,null,"HSC H105"]
["HLTH",null,null,"HSC H106"]
["HS",null,null,"HSC H108"]
["IDS",null,null,"HSC H113"]
["INS",null,null,"HSC H122"]
["IS",null,null,"HSC H201"]
["JOUR",null,null,"HSC H202"]
["KHP",null,null,"HSC H205"]
["KW",null,null,"HSC H206"]
["LAT",null,null,"HSC H208"]
["LGST",null,null,"HSC H215"]
["LS",null,null,"HSC H216"]
["MATH",null,null,"HSC H217"]
["MCOM",null,null,"HSC H218"]
["MDTE",null,null,"RAC 108"]
["MGT",null,null,"RAC 115"]
["MIS",null,null,"RAC 124"]
["ML",null,null,"RAC 128"]
["MS",null,null,"RAC 133"]
["MUS",null,null,"RAC 135"]
["NURS",null,null,"RAC 136"]
["PC",null,null,"RAC 137"]
["PE",null,null,"RAC 138"]
["PEH",null,null,"RAC 139"]
["PHI",null,null,"RAC 147"]
["PHIL",null,null,"RAC 151"]
["PHSC",null,null,"RAC 153"]
["PHYS",null,null,"RAC PAH"]
["POLS",null,null,"RAC PLab"]
["PS",null,null,"Rogers Hall"]
["PSY"]
["REL"]
["RTV"]
["SOC"]
["SPAN"]
["SPCH"]
["TCOM"]
["THEA"]
["THTR"]
["ZOO"]